Workbook

Sheet FY2019 Est Tons
A1: Facility ID | B1: SITE NAME | C1: Non-EGU or EGU? | D1: PM ALW | E1: PM ACT | F1: SO2 ALW | G1: SO2 ACT | H1: VOC ALW | I1: VOC ACT | J1: NOX ALW | K1: NOX ACT | L1: HAP NOstd ALW | M1: HAP NOstd ACT | N1: HAP std ALW | O1: HAP std ACT | P1: NSPS ALW | Q1: NSPS ACT | R1: TOTAL ALW | S1: TOTAL ACT | T1: ALW $/ton | U1: ACT $/ton | V1: $/ton fee | W1: $/ton fee + base fee | X1: total fee | Z1: Billing Mode | AA1: Combined tons
A2: 01-0009 | B2: Tennessee Valley Authority - Bull Run Fossil Plant | C2: EGU | D2: 0 | E2: 70 | F2: 0 | G2: 376 | H2: 0 | I2: 26 | J2: 0 | K2: 859 | L2: 0 | M2: 36 | N2: 0 | O2: 0 | P2: 0 | Q2: 0 | R2: 0 | S2: 1367 | T2: 46.81999969 | U2: 74.91000366 | V2: 102401.97 | W2: 106401.97 | X2: 106401.97 | Z2: Actuals | AA2: =SUM(R2:S2) -> 1367 | CV2: 1 | CW2: 82-0003 | CX2: 726206.31 | CZ2: Mean | DA2: =AVERAGE(CX2:CX216) -> 33183.53339
A3: 01-0020 | B3: US Department of Energy - Oak Ridge Y-12 National Security Complex | C3: Non-EGU | D3: 300.6 | E3: 3.4 | F3: 0 | G3: 0.4 | H3: 77.5 | I3: 16.4 | J3: 220.1 | K3: 15.4 | L3: 38 | M3: 0 | N3: 0 | O3: 0 | P3: 14.5 | Q3: 0 | R3: 650.7 | S3: 35.6 | T3: 33.43999863 | U3: 53.5 | V3: 23664.008 | W3: 27664.008 | X3: 27664.008 | Z3: Mixed | AA3: 686.3 | CV3: 2 | CW3: 81-0011 | CX3: 615697.52 | CZ3: Median | DA3: =MEDIAN(CX2:CX216) -> 14679.04
A4: 01-0114 | B4: The Carlstar Group LLC | C4: Non-EGU | D4: 132.2 | E4: 0 | F4: 0 | G4: 0.1 | H4: 0 | I4: 70.6 | J4: 0 | K4: 14.7 | L4: 0 | M4: 0 | N4: 0 | O4: 0 | P4: 0 | Q4: 0 | R4: 132.2 | S4: 85.4 | T4: 33.43999863 | U4: 53.5 | V4: 8989.668 | W4: 12989.668 | X4: 12989.668 | Z4: Mixed | AA4: 217.6 | CV4: 3 | CW4: 73-0013 | CX4: 360664.046 | CZ4: Mode | DA4: =MODE(CX2:CX216) -> 7500
A5: 01-0170 | B5: Chestnut Ridge Landfill and Recycling Center | C5: Non-EGU | D5: 0 | E5: 9 | F5: 0 | G5: 15.8 | H5: 0 | I5: 22 | J5: 0 | K5: 49.1 | L5: 0 | M5: 0 | N5: 0 | O5: 0 | P5: 0 | Q5: 0 | R5: 0 | S5: 95.9 | T5: 33.43999863 | U5: 53.5 | V5: 5130.65 | W5: 9130.65 | X5: 9130.65 | Z5: Actuals | AA5: 95.9 | CV5: 4 | CW5: 83-0025 | CX5: 265102.9555 | CZ5: StdDev | DA5: =STDEV(CX2:CX216) -> 76546.72784
A6: 02-0081 | B6: Bemis Packaging, Inc. | C6: Non-EGU | D6: 0 | E6: 0 | F6: 0 | G6: 0 | H6: 0 | I6: 44.1 | J6: 0 | K6: 3.3 | L6: 0 | M6: 0 | N6: 0 | O6: 0 | P6: 0 | Q6: 0 | R6: 0 | S6: 47.4 | T6: 33.43999863 | U6: 53.5 | V6: 2535.9 | W6: 6535.9 | X6: 7500 | Z6: Actuals | AA6: 47.4 | CV6: 5 | CW6: 54-0012 | CX6: 256053.12
A7: 03-0045 | B7: West Camden Sanitary Landfill | C7: Non-EGU | D7: 0 | E7: 8.3 | F7: 0 | G7: 29.3 | H7: 0 | I7: 18.6 | J7: 0 | K7: 55.8 | L7: 0 | M7: 0 | N7: 0 | O7: 0 | P7: 0 | Q7: 0 | R7: 0 | S7: 112 | T7: 33.43999863 | U7: 53.5 | V7: 5992 | W7: 9992 | X7: 9992 | Z7: Actuals | AA7: 112 | CV7: 6 | CW7: 36-0002 | CX7: 243350.846
A8: 05-0008 | B8: Arconic Inc. (formerly Alcoa, Inc. - South Plant) | C8: Non-EGU | D8: 0 | E8: 131.27 | F8: 0 | G8: 6.57 | H8: 0 | I8: 227.91 | J8: 0 | K8: 174.62 | L8: 0 | M8: 82.28 | N8: 0 | O8: 0 | P8: 0 | Q8: 0 | R8: 0 | S8: 622.65 | T8: 33.43999863 | U8: 53.5 | V8: 33311.775 | W8: 37311.775 | X8: 37311.775 | Z8: Actuals | AA8: 622.65 | CV8: 7 | CW8: 64-0013 | CX8: 211215.58
A9: 05-0011 | B9: Alcoa, Maryville, Blount County Landfill | C9: Non-EGU | D9: 0 | E9: 18.3 | F9: 0 | G9: 0 | H9: 0 | I9: 5 | J9: 0 | K9: 1.1 | L9: 0 | M9: 0 | N9: 0 | O9: 0.5 | P9: 0 | Q9: 0 | R9: 0 | S9: 24.9 | T9: 33.43999863 | U9: 53.5 | V9: 1332.15 | W9: 5332.15 | X9: 7500 | Z9: Actuals | AA9: 24.9 | CV9: 8 | CW9: 37-0026 | CX9: 171674.5734
A10: 05-0176 | B10: Flex-N-Gate Rockford, Inc. | C10: Non-EGU | D10: 38.6 | E10: 0 | F10: 0 | G10: 0 | H10: 316.8 | I10: 0 | J10: 0 | K10: 0 | L10: 0 | M10: 0 | N10: 0 | O10: 0 | P10: 0 | Q10: 0 | R10: 355.4 | S10: 0 | T10: 33.43999863 | U10: 53.5 | V10: 11884.576 | W10: 15884.576 | X10: 15884.576 | Z10: Allowables | AA10: 355.4 | CV10: 9 | CW10: 37-0028 | CX10: 158374.315
A11: 05-0183 | B11: Denso Manufacturing Tennessee, Inc. | C11: Non-EGU | D11: 15.3 | E11: 0 | F11: 0 | G11: 0 | H11: 112 | I11: 0 | J11: 0 | K11: 0 | L11: 24.9 | M11: 0 | N11: 0.2 | O11: 0 | P11: 24.9 | Q11: 0 | R11: 177.3 | S11: 0 | T11: 33.43999863 | U11: 53.5 | V11: 5928.912 | W11: 9928.912 | X11: 9928.912 | Z11: Allowables | AA11: 177.3 | CV11: 10 | CW11: 43-0007 | CX11: 132781.9081
A12: 05-0199 | B12: Skier's Choice Inc | C12: Non-EGU | D12: 37.7 | E12: 0 | F12: 0 | G12: 0 | H12: 245 | I12: 0 | J12: 0 | K12: 0 | L12: 0 | M12: 0 | N12: 0 | O12: 0 | P12: 0 | Q12: 0 | R12: 282.7 | S12: 0 | T12: 33.43999863 | U12: 53.5 | V12: 9453.488 | W12: 13453.488 | X12: 13453.488 | Z12: Allowables | AA12: 282.7 | CV12: 11 | CW12: 01-0009 | CX12: 129367.57
A13: 06-0014 | B13: Olin Corporation | C13: Non-EGU | D13: 10.2 | E13: 0 | F13: 77.7 | G13: 0 | H13: 0 | I13: 0 | J13: 66.8 | K13: 0 | L13: 0 | M13: 0 | N13: 9.8 | O13: 0 | P13: 0 | Q13: 0 | R13: 164.5 | S13: 0 | T13: 33.43999863 | U13: 53.5 | V13: 5500.88 | W13: 9500.88 | X13: 9500.88 | Z13: Allowables | AA13: 164.5 | CV13: 12 | CW13: 75-0155 | CX13: 119217.4646
A14: 06-0085 | B14: Duracell Manufacturing, Inc. | C14: Non-EGU | D14: 65.6 | E14: 0 | F14: 0 | G14: 0 | H14: 77.4 | I14: 0 | J14: 0 | K14: 0 | L14: 0 | M14: 0 | N14: 0 | O14: 0 | P14: 0 | Q14: 0 | R14: 143 | S14: 0 | T14: 33.43999863 | U14: 53.5 | V14: 4781.92 | W14: 8781.92 | X14: 8781.92 | Z14: Allowables | AA14: 143 | CV14: 13 | CW14: 41-0002 | CX14: 94528.269
A15: 06-0205 | B15: Bradley Co Landfill | C15: Non-EGU | D15: 0 | E15: 0 | F15: 0 | G15: 0 | H15: 0 | I15: 34.4 | J15: 0 | K15: 0 | L15: 0 | M15: 0 | N15: 0 | O15: 0 | P15: 0 | Q15: 0 | R15: 0 | S15: 34.4 | T15: 33.43999863 | U15: 53.5 | V15: 1840.4 | W15: 5840.4 | X15: 7500 | Z15: Actuals | AA15: 34.4 | CV15: 14 | CW15: 53-0003 | CX15: 79214.67
A16: 06-0215 | B16: Arch Chemicals Inc | C16: Non-EGU | D16: 234.8 | E16: 0 | F16: 0.2 | G16: 0 | H16: 1.5 | I16: 0 | J16: 39.5 | K16: 0 | L16: 40 | M16: 0 | N16: 0 | O16: 0 | P16: 40 | Q16: 0 | R16: 356 | S16: 0 | T16: 33.43999863 | U16: 53.5 | V16: 11904.64 | W16: 15904.64 | X16: 15904.64 | Z16: Allowables | AA16: 356 | CV16: 15 | CW16: 83-0008 | CX16: 74617.1596
A17: 09-0012 | B17: GrÃ¤nges Americas Inc. | C17: Non-EGU | D17: 0 | E17: 9.8 | F17: 0 | G17: 0.4 | H17: 0 | I17: 665.4 | J17: 0 | K17: 58.2 | L17: 0 | M17: 3.9 | N17: 0 | O17: 0 | P17: 0 | Q17: 0 | R17: 0 | S17: 737.7 | T17: 33.43999863 | U17: 53.5 | V17: 39466.95 | W17: 43466.95 | X17: 43466.95 | Z17: Actuals | AA17: 737.7 | CV17: 16 | CW17: 82-0022 | CX17: 74108.3514
A18: 11-0023 | B18: State Industries Incorporated | C18: Non-EGU | D18: 81.5 | E18: 1 | F18: 30 | G18: 0 | H18: 0 | I18: 231.4 | J18: 46.4 | K18: 0 | L18: 0 | M18: 0 | N18: 0 | O18: 0 | P18: 0 | Q18: 0 | R18: 157.9 | S18: 232.4 | T18: 33.43999863 | U18: 53.5 | V18: 17713.576 | W18: 21713.576 | X18: 21713.576 | Z18: Mixed | AA18: 390.3 | CV18: 17 | CW18: 87-0028 | CX18: 70185.328
A19: 11-0039 | B19: Trinity Marine Products, Inc. - No. 296 | C19: Non-EGU | D19: 28.6 | E19: 0 | F19: 0 | G19: 0 | H19: 120 | I19: 0 | J19: 0 | K19: 0 | L19: 0 | M19: 0 | N19: 0 | O19: 0 | P19: 0 | Q19: 0 | R19: 148.6 | S19: 0 | T19: 33.43999863 | U19: 53.5 | V19: 4969.184 | W19: 8969.184 | X19: 8969.184 | Z19: Allowables | AA19: 148.6 | CV19: 18 | CW19: 64-0001 | CX19: 58875.436
A20: 13-0083 | B20: SumiRiko Tennessee, Inc. | C20: Non-EGU | D20: 0 | E20: 1.1 | F20: 0 | G20: 0 | H20: 0 | I20: 208.1 | J20: 0 | K20: 0 | L20: 0 | M20: 0 | N20: 0 | O20: 0 | P20: 0 | Q20: 0 | R20: 0 | S20: 209.2 | T20: 33.43999863 | U20: 53.5 | V20: 11192.2 | W20: 15192.2 | X20: 15192.2 | Z20: Actuals | AA20: 209.2 | CV20: 19 | CW20: 60-0011 | CX20: 53563.6
A21: 14-0022 | B21: Honest Abe Log Homes, Inc. | C21: Non-EGU | D21: 191.9 | E21: 0 | F21: 21.2 | G21: 0 | H21: 5.7 | I21: 0 | J21: 113 | K21: 0 | L21: 0 | M21: 0 | N21: 0 | O21: 0 | P21: 0 | Q21: 0 | R21: 331.8 | S21: 0 | T21: 33.43999863 | U21: 53.5 | V21: 11095.392 | W21: 15095.392 | X21: 15095.392 | Z21: Allowables | AA21: 331.8 | CV21: 20 | CW21: 43-0010 | CX21: 52492.208
A22: 15-0005 | B22: Si Group Inc. | C22: Non-EGU | D22: 11.9 | E22: 0 | F22: 28.2 | G22: 0 | H22: 35 | I22: 0 | J22: 61.2 | K22: 0 | L22: 0 | M22: 0 | N22: 0 | O22: 0 | P22: 0 | Q22: 0 | R22: 136.3 | S22: 0 | T22: 33.43999863 | U22: 53.5 | V22: 4557.872 | W22: 8557.872 | X22: 8557.872 | Z22: Allowables | AA22: 136.3 | CV22: 21 | CW22: 09-0012 | CX22: 52326.727
A23: 15-0009 | B23: Commercial Furniture Group | C23: Non-EGU | D23: 116 | E23: 0 | F23: 0 | G23: 0 | H23: 107 | I23: 0 | J23: 0 | K23: 0 | L23: 0 | M23: 0 | N23: 0 | O23: 0 | P23: 0 | Q23: 0 | R23: 223 | S23: 0 | T23: 33.43999863 | U23: 53.5 | V23: 7457.12 | W23: 11457.12 | X23: 11457.12 | Z23: Allowables | AA23: 223 | CV23: 22 | CW23: 54-0174 | CX23: 51744.208
A24: 15-0020 | B24: Sonoco - Newport | C24: Non-EGU | D24: 0 | E24: 2 | F24: 0 | G24: 0.2 | H24: 0 | I24: 67.1 | J24: 0 | K24: 26.8 | L24: 0 | M24: 0 | N24: 0 | O24: 0 | P24: 0 | Q24: 3 | R24: 0 | S24: 99.1 | T24: 33.43999863 | U24: 53.5 | V24: 5301.85 | W24: 9301.85 | X24: 9301.85 | Z24: Actuals | AA24: 99.1 | CV24: 23 | CW24: 50-0003 | CX24: 48031.264
A25: 16-0010 | B25: Arnold Engineering Development Complex | C25: Non-EGU | D25: 0 | E25: 4.8 | F25: 0 | G25: 6.6 | H25: 0 | I25: 10.5 | J25: 0 | K25: 88 | L25: 0 | M25: 0 | N25: 0 | O25: 0 | P25: 0 | Q25: 0 | R25: 0 | S25: 109.9 | T25: 33.43999863 | U25: 53.5 | V25: 5879.65 | W25: 9879.65 | X25: 9879.65 | Z25: Actuals | AA25: 109.9 | CV25: 24 | CW25: 05-0008 | CX25: 44789.8015
A26: 16-0067 | B26: Batesville Manufacturing, Inc. | C26: Non-EGU | D26: 0 | E26: 10.2 | F26: 0 | G26: 0 | H26: 0 | I26: 244.5 | J26: 0 | K26: 0 | L26: 0 | M26: 0 | N26: 0 | O26: 0 | P26: 0 | Q26: 0 | R26: 0 | S26: 254.7 | T26: 33.43999863 | U26: 53.5 | V26: 13626.45 | W26: 17626.45 | X26: 17626.45 | Z26: Actuals | AA26: 254.7 | CV26: 25 | CW26: 82-0041 | CX26: 40229.632
A27: 16-0113 | B27: KASAI North America, Inc. | C27: Non-EGU | D27: 41 | E27: 0 | F27: 0 | G27: 0 | H27: 225 | I27: 0 | J27: 6 | K27: 0 | L27: 0 | M27: 0 | N27: 0 | O27: 0 | P27: 0 | Q27: 0 | R27: 272 | S27: 0 | T27: 33.43999863 | U27: 53.5 | V27: 9095.68 | W27: 13095.68 | X27: 13095.68 | Z27: Allowables | AA27: 272 | CV27: 26 | CW27: 53-0081 | CX27: 39928.048
A28: 16-0123 | B28: Sonoco Protective Solutions | C28: Non-EGU | D28: 0 | E28: 0.6 | F28: 0 | G28: 0.1 | H28: 0 | I28: 45.9 | J28: 0 | K28: 4.9 | L28: 0 | M28: 0 | N28: 0 | O28: 0 | P28: 0 | Q28: 0 | R28: 0 | S28: 51.5 | T28: 33.43999863 | U28: 53.5 | V28: 2755.25 | W28: 6755.25 | X28: 7500 | Z28: Actuals | AA28: 51.5 | CV28: 27 | CW28: 73-0125 | CX28: 39631.408
A29: 18-0090 | B29: Crossville Hardwoods, LLC | C29: Non-EGU | D29: 0 | E29: 111.5 | F29: 0 | G29: 1.4 | H29: 0 | I29: 7.8 | J29: 0 | K29: 27 | L29: 0 | M29: 0 | N29: 0 | O29: 0 | P29: 0 | Q29: 0 | R29: 0 | S29: 147.7 | T29: 33.43999863 | U29: 53.5 | V29: 7901.95 | W29: 11901.95 | X29: 11901.95 | Z29: Actuals | AA29: 147.7 | CV29: 28 | CW29: 18-0120 | CX29: 39428.704
A30: 18-0117 | B30: Ficosa North America Corporation | C30: Non-EGU | D30: 0 | E30: 0.6 | F30: 0 | G30: 0 | H30: 0 | I30: 231 | J30: 0 | K30: 0 | L30: 0 | M30: 0 | N30: 0 | O30: 0 | P30: 0 | Q30: 0 | R30: 0 | S30: 231.6 | T30: 33.43999863 | U30: 53.5 | V30: 12390.6 | W30: 16390.6 | X30: 16390.6 | Z30: Actuals | AA30: 231.6 | CV30: 29 | CW30: 01-0020 | CX30: 38502.764
A31: 18-0120 | B31: StonePeak Ceramics, Inc. | C31: Non-EGU | D31: 189.1 | E31: 0 | F31: 243.4 | G31: 0 | H31: 46.6 | I31: 0 | J31: 199.3 | K31: 0 | L31: 19.1 | M31: 0 | N31: 0 | O31: 0 | P31: 19.1 | Q31: 0 | R31: 716.6 | S31: 0 | T31: 33.43999863 | U31: 53.5 | V31: 23963.104 | W31: 27963.104 | X31: 27963.104 | Z31: Allowables | AA31: 716.6 | CV31: 30 | CW31: 75-0057 | CX31: 35730.592
A32: 20-0052 | B32: Decatur County Municipal Solid Waste Landfill | C32: Non-EGU | D32: 0 | E32: 0 | F32: 0 | G32: 0 | H32: 0 | I32: 15.6 | J32: 0 | K32: 0 | L32: 0 | M32: 0 | N32: 0 | O32: 0 | P32: 0 | Q32: 0 | R32: 0 | S32: 15.6 | T32: 33.43999863 | U32: 53.5 | V32: 834.6 | W32: 4834.6 | X32: 7500 | Z32: Actuals | AA32: 15.6 | CV32: 31 | CW32: 37-0007 | CX32: 34814.56
A33: 21-0031 | B33: Federal-Mogul Motorparts | C33: Non-EGU | D33: 228.7 | E33: 0 | F33: 17.9 | G33: 0 | H33: 240 | I33: 0 | J33: 130.9 | K33: 0 | L33: 0 | M33: 0 | N33: 0 | O33: 0 | P33: 0 | Q33: 0 | R33: 617.5 | S33: 0 | T33: 33.43999863 | U33: 53.5 | V33: 20649.2 | W33: 24649.2 | X33: 24649.2 | Z33: Allowables | AA33: 617.5 | CV33: 32 | CW33: 62-0089 | CX33: 34613.248
A34: 22-0055 | B34: Ebbtide Corp. | C34: Non-EGU | D34: 0 | E34: 0 | F34: 0 | G34: 0 | H34: 0 | I34: 0 | J34: 0 | K34: 0 | L34: 0 | M34: 0 | N34: 0 | O34: 0 | P34: 0 | Q34: 0 | R34: 0 | S34: 0 | T34: 33.43999863 | U34: 53.5 | V34: 0 | W34: 4000 | X34: 7500 | Z34: Mixed | AA34: 0 | CV34: 33 | CW34: 21-0031 | CX34: 34529.2
A35: 22-0072 | B35: Nemak USA, Inc. | C35: Non-EGU | D35: 0 | E35: 83.9 | F35: 0 | G35: 0.2 | H35: 0 | I35: 88.4 | J35: 0 | K35: 29.6 | L35: 0 | M35: 2.21 | N35: 0 | O35: 0 | P35: 0 | Q35: 0 | R35: 0 | S35: 204.31 | T35: 33.43999863 | U35: 53.5 | V35: 10930.585 | W35: 14930.585 | X35: 14930.585 | Z35: Actuals | AA35: 204.31 | CV35: 34 | CW35: 83-0129 | CX35: 33599.728
A36: 22-0112 | B36: Bridgestone APM | C36: Non-EGU | D36: 0 | E36: 0 | F36: 0 | G36: 0 | H36: 0 | I36: 99.1 | J36: 11.7 | K36: 0.1 | L36: 0 | M36: 0 | N36: 0 | O36: 0 | P36: 0 | Q36: 0 | R36: 11.7 | S36: 99.2 | T36: 33.43999863 | U36: 53.5 | V36: 5698.448 | W36: 9698.448 | X36: 9698.448 | Z36: Mixed | AA36: 110.9 | CV36: 35 | CW36: 91-0001 | CX36: 32529.93255
A37: 22-0177 | B37: Dal-Tile Dickson | C37: Non-EGU | D37: 116.2 | E37: 0 | F37: 49.4 | G37: 0 | H37: 99.7 | I37: 0 | J37: 60.4 | K37: 0 | L37: 18.2 | M37: 0 | N37: 0 | O37: 0 | P37: 0 | Q37: 0 | R37: 343.9 | S37: 0 | T37: 33.43999863 | U37: 53.5 | V37: 11500.016 | W37: 15500.016 | X37: 15500.016 | Z37: Allowables | AA37: 343.9 | CV37: 36 | CW37: 54-0167 | CX37: 31765.504
A38: 23-0092 | B38: Trunkline Gas Company- Dyersburg Compressor Station | C38: Non-EGU | D38: 0 | E38: 0.3 | F38: 0 | G38: 4.1 | H38: 0 | I38: 5.6 | J38: 0 | K38: 188.8 | L38: 0 | M38: 0.2 | N38: 0 | O38: 0.2 | P38: 0 | Q38: 0 | R38: 0 | S38: 199.2 | T38: 33.43999863 | U38: 53.5 | V38: 10657.2 | W38: 14657.2 | X38: 14657.2 | Z38: Actuals | AA38: 199.2 | CV38: 37 | CW38: 63-0135 | CX38: 31750.672
A39: 23-0120 | B39: SRG Global Coatings, Inc. | C39: Non-EGU | D39: 103.5 | E39: 0 | F39: 0.4 | G39: 0 | H39: 230.2 | I39: 0 | J39: 4.4 | K39: 0 | L39: 24.9 | M39: 0 | N39: 0 | O39: 0 | P39: 24.9 | Q39: 0 | R39: 388.3 | S39: 0 | T39: 33.43999863 | U39: 53.5 | V39: 12984.752 | W39: 16984.752 | X39: 16984.752 | Z39: Allowables | AA39: 388.3 | CV39: 38 | CW39: 53-0093 | CX39: 30476.692
A40: 24-0080 | B40: Stabilit America, Inc. | C40: Non-EGU | D40: 11.8 | E40: 0 | F40: 0 | G40: 0 | H40: 50.3 | I40: 0 | J40: 9.4 | K40: 0 | L40: 0 | M40: 0 | N40: 0 | O40: 0 | P40: 0 | Q40: 0 | R40: 71.5 | S40: 0 | T40: 33.43999863 | U40: 53.5 | V40: 2390.96 | W40: 6390.96 | X40: 7500 | Z40: Allowables | AA40: 71.5 | CV40: 39 | CW40: 53-0098 | CX40: 30302.08
A41: 26-0079 | B41: Tepro Inc. | C41: Non-EGU | D41: 29 | E41: 0 | F41: 0 | G41: 0 | H41: 187 | I41: 0 | J41: 0 | K41: 0 | L41: 0 | M41: 0 | N41: 0 | O41: 0 | P41: 0 | Q41: 0 | R41: 216 | S41: 0 | T41: 33.43999863 | U41: 53.5 | V41: 7223.04 | W41: 11223.04 | X41: 11223.04 | Z41: Allowables | AA41: 216 | CV41: 40 | CW41: 62-0090 | CX41: 30109.264
A42: 26-0086 | B42: Tennessee Zanini, Inc. | C42: Non-EGU | D42: 0 | E42: 7.8 | F42: 0 | G42: 0 | H42: 0 | I42: 193.2 | J42: 0 | K42: 0 | L42: 0 | M42: 0 | N42: 0 | O42: 0 | P42: 0 | Q42: 0 | R42: 0 | S42: 201 | T42: 33.43999863 | U42: 53.5 | V42: 10753.5 | W42: 14753.5 | X42: 14753.5 | Z42: Actuals | AA42: 201 | CV42: 41 | CW42: 63-0123 | CX42: 30104.32
A43: 26-0131 | B43: CJBBB Inc dba Phoenix Boats | C43: Non-EGU | D43: 0 | E43: 0.8 | F43: 0 | G43: 0 | H43: 0 | I43: 42.3 | J43: 0 | K43: 0 | L43: 0 | M43: 0 | N43: 0 | O43: 0 | P43: 0 | Q43: 0 | R43: 0 | S43: 43.1 | T43: 33.43999863 | U43: 53.5 | V43: 2305.85 | W43: 6305.85 | X43: 7500 | Z43: Actuals | AA43: 43.1 | CV43: 42 | CW43: 83-0014 | CX43: 30090.149
A44: 27-0100 | B44: Ceco Door Products | C44: Non-EGU | D44: 93.8 | E44: 0 | F44: 0.1 | G44: 0 | H44: 230.5 | I44: 0 | J44: 19.8 | K44: 0 | L44: 0 | M44: 0 | N44: 0 | O44: 0 | P44: 0 | Q44: 0 | R44: 344.2 | S44: 0 | T44: 33.43999863 | U44: 53.5 | V44: 11510.048 | W44: 15510.048 | X44: 15510.048 | Z44: Allowables | AA44: 344.2 | CV44: 43 | CW44: 57-0035 | CX44: 29001.808
A45: 28-0025 | B45: Magotteaux Incorporated. | C45: Non-EGU | D45: 195.8 | E45: 0 | F45: 58.5 | G45: 0 | H45: 118.2 | I45: 0 | J45: 22.4 | K45: 0 | L45: 0 | M45: 0 | N45: 0 | O45: 0 | P45: 0 | Q45: 0 | R45: 394.9 | S45: 0 | T45: 33.43999863 | U45: 53.5 | V45: 13205.456 | W45: 17205.456 | X45: 17205.456 | Z45: Allowables | AA45: 394.9 | CV45: 44 | CW45: 49-0049 | CX45: 28789.216
A46: 28-0091 | B46: SaarGummi Tennessee, LLC | C46: Non-EGU | D46: 9.2 | E46: 0 | F46: 0 | G46: 0 | H46: 91.5 | I46: 0 | J46: 0 | K46: 0 | L46: 0 | M46: 0 | N46: 0 | O46: 0 | P46: 0 | Q46: 0 | R46: 100.7 | S46: 0 | T46: 33.43999863 | U46: 53.5 | V46: 3367.408 | W46: 7367.408 | X46: 7500 | Z46: Allowables | AA46: 100.7 | CV46: 45 | CW46: 95-0093 | CX46: 28769.44
A47: 30-0001 | B47: Imerys Fused Minerals Greeneville, Inc. | C47: Non-EGU | D47: 224.5 | E47: 0 | F47: 0.2 | G47: 0 | H47: 1.2 | I47: 0 | J47: 41.4 | K47: 0 | L47: 0 | M47: 0 | N47: 0 | O47: 0 | P47: 0 | Q47: 0 | R47: 267.3 | S47: 0 | T47: 33.43999863 | U47: 53.5 | V47: 8938.512 | W47: 12938.512 | X47: 12938.512 | Z47: Allowables | AA47: 267.3 | CV47: 46 | CW47: 36-0074 | CX47: 28655.728
A48: 30-0132 | B48: Plus Mark, Inc. | C48: Non-EGU | D48: 0 | E48: 0.2 | F48: 0 | G48: 0 | H48: 0 | I48: 164.5 | J48: 0 | K48: 2.5 | L48: 0 | M48: 0 | N48: 0 | O48: 0 | P48: 0 | Q48: 0 | R48: 0 | S48: 167.2 | T48: 33.43999863 | U48: 53.5 | V48: 8945.2 | W48: 12945.2 | X48: 12945.2 | Z48: Actuals | AA48: 167.2 | CV48: 47 | CW48: 57-0024 | CX48: 28500.4644
A49: 30-0136 | B49: Donaldson Company, Inc. | C49: Non-EGU | D49: 18.6 | E49: 0 | F49: 0 | G49: 0 | H49: 70.5 | I49: 0 | J49: 0 | K49: 0 | L49: 29.6 | M49: 0 | N49: 0 | O49: 0 | P49: 29.6 | Q49: 0 | R49: 148.3 | S49: 0 | T49: 33.43999863 | U49: 53.5 | V49: 4959.152 | W49: 8959.152 | X49: 8959.152 | Z49: Allowables | AA49: 148.3 | CV49: 48 | CW49: 54-0009 | CX49: 28397.6995
A50: 30-0165 | B50: Delfasco, LLC | C50: Non-EGU | D50: 6.7 | E50: 0 | F50: 0 | G50: 0 | H50: 99.9 | I50: 0 | J50: 0 | K50: 0 | L50: 0 | M50: 0 | N50: 0 | O50: 0 | P50: 0 | Q50: 0 | R50: 106.6 | S50: 0 | T50: 33.43999863 | U50: 53.5 | V50: 3564.704 | W50: 7564.704 | X50: 7564.704 | Z50: Allowables | AA50: 106.6 | CV50: 49 | CW50: 43-0021 | CX50: 28186.048
A51: 30-0166 | B51: SumiRiko Tennessee, Inc. | C51: Non-EGU | D51: 0 | E51: 37.2 | F51: 0 | G51: 0 | H51: 0 | I51: 119.4 | J51: 0 | K51: 3.7 | L51: 0 | M51: 0 | N51: 0 | O51: 0 | P51: 0 | Q51: 0 | R51: 0 | S51: 160.3 | T51: 33.43999863 | U51: 53.5 | V51: 8576.05 | W51: 12576.05 | X51: 12576.05 | Z51: Actuals | AA51: 160.3 | CV51: 50 | CW51: 60-0272 | CX51: 28013.008
A52: 30-0190 | B52: Sea Ray Boats | C52: Non-EGU | D52: 48.4 | E52: 0 | F52: 0 | G52: 0 | H52: 129 | I52: 0 | J52: 0 | K52: 0 | L52: 0 | M52: 0 | N52: 0 | O52: 0 | P52: 0 | Q52: 0 | R52: 177.4 | S52: 0 | T52: 33.43999863 | U52: 53.5 | V52: 5932.256 | W52: 9932.256 | X52: 9932.256 | Z52: Allowables | AA52: 177.4 | CV52: 51 | CW52: 35-0004 | CX52: 27943.792
A53: 32-0196 | B53: Sonoco Flexible Packaging | C53: Non-EGU | D53: 0 | E53: 0 | F53: 0 | G53: 0 | H53: 99 | I53: 32.6 | J53: 0 | K53: 0 | L53: 0 | M53: 0 | N53: 0 | O53: 0 | P53: 0 | Q53: 0 | R53: 99 | S53: 32.6 | T53: 33.43999863 | U53: 53.5 | V53: 5054.66 | W53: 9054.66 | X53: 9054.66 | Z53: Mixed | AA53: 131.6 | CV53: 52 | CW53: 82-0315 | CX53: 27068.704
A54: 32-0275 | B54: Trelleborg Coated Systems US, Inc. dba Morristown Facility | C54: Non-EGU | D54: 0 | E54: 3.4 | F54: 0 | G54: 0.2 | H54: 0 | I54: 18.9 | J54: 0 | K54: 2.4 | L54: 0 | M54: 0 | N54: 0 | O54: 0 | P54: 0 | Q54: 0 | R54: 0 | S54: 24.9 | T54: 33.43999863 | U54: 53.5 | V54: 1332.15 | W54: 5332.15 | X54: 7500 | Z54: Actuals | AA54: 24.9 | CV54: 53 | CW54: 11-0023 | CX54: 27031.1
A55: 34-0014 | B55: Powell Valley Electric Cooperative, Inc | C55: Non-EGU | D55: 0 | E55: 0 | F55: 0 | G55: 0 | H55: 0 | I55: 0 | J55: 0 | K55: 0 | L55: 0 | M55: 0 | N55: 0 | O55: 0 | P55: 0 | Q55: 0 | R55: 0 | S55: 0 | T55: 33.43999863 | U55: 53.5 | V55: 0 | W55: 4000 | X55: 7500 | Z55: Mixed | AA55: 0 | CV55: 54 | CW55: 43-0011 | CX55: 26347.04
A56: 35-0001 | B56: Kilgore Flares Company, LLC | C56: Non-EGU | D56: 55.2 | E56: 0 | F56: 0.1 | G56: 0 | H56: 82.2 | I56: 0 | J56: 2 | K56: 0 | L56: 0.7 | M56: 0 | N56: 0 | O56: 0 | P56: 0.7 | Q56: 0 | R56: 140.9 | S56: 0 | T56: 33.43999863 | U56: 53.5 | V56: 4711.696 | W56: 8711.696 | X56: 8711.696 | Z56: Allowables | AA56: 140.9 | CV56: 55 | CW56: 35-0006 | CX56: 26319.257
A57: 35-0004 | B57: Thyssen Elevator Systems, Inc. | C57: Non-EGU | D57: 84.5 | E57: 0 | F57: 0 | G57: 0 | H57: 398.2 | I57: 0 | J57: 1.6 | K57: 0 | L57: 0 | M57: 0 | N57: 0 | O57: 0 | P57: 0 | Q57: 0 | R57: 484.3 | S57: 0 | T57: 33.43999863 | U57: 53.5 | V57: 16194.992 | W57: 20194.992 | X57: 20194.992 | Z57: Allowables | AA57: 484.3 | CV57: 56 | CW57: 89-0077 | CX57: 25707.6038
A58: 35-0006 | B58: Tennessee Gas Pipeline Company LLC - Station 71 | C58: Non-EGU | D58: 0 | E58: 18.1 | F58: 0 | G58: 1.4 | H58: 0 | I58: 15.1 | J58: 0 | K58: 306.1 | L58: 0 | M58: 0 | N58: 0 | O58: 0 | P58: 0 | Q58: 0 | R58: 0 | S58: 340.7 | T58: 33.43999863 | U58: 53.5 | V58: 18227.45 | W58: 22227.45 | X58: 22227.45 | Z58: Actuals | AA58: 340.7 | CV58: 57 | CW58: 38-0039 | CX58: 25166.507
A59: 36-0002 | B59: Packaging Corp Of America Counce Mill | C59: Non-EGU | D59: 37.7 | E59: 222.2 | F59: 1.5 | G59: 736.1 | H59: 411.2 | I59: 317.7 | J59: 22.4 | K59: 1525.6 | L59: 441.9 | M59: 0 | N59: 0 | O59: 0 | P59: 199.2 | Q59: 11.4 | R59: 1113.9 | S59: 2813 | T59: 33.43999863 | U59: 53.5 | V59: 187744.316 | W59: 191744.316 | X59: 191744.316 | Z59: Mixed | AA59: 3926.9 | CV59: 58 | CW59: 57-0189 | CX59: 24857.828
A60: 36-0061 | B60: Tennessee Gas Pipeline Company, LLC - Compressor Station 856 | C60: Non-EGU | D60: 0 | E60: 0 | F60: 0 | G60: 0 | H60: 0 | I60: 0 | J60: 0 | K60: 0.1 | L60: 0 | M60: 0 | N60: 0 | O60: 0 | P60: 0 | Q60: 0 | R60: 0 | S60: 0.1 | T60: 33.43999863 | U60: 53.5 | V60: 5.35 | W60: 4005.35 | X60: 7500 | Z60: Actuals | AA60: 0.1 | CV60: 59 | CW60: 66-0123 | CX60: 24779.632
A61: 36-0074 | B61: The Praxis Companies, LLC | C61: Non-EGU | D61: 12.7 | E61: 0 | F61: 0 | G61: 0 | H61: 486 | I61: 0 | J61: 0 | K61: 0 | L61: 0 | M61: 0 | N61: 0 | O61: 0 | P61: 0 | Q61: 0 | R61: 498.7 | S61: 0 | T61: 33.43999863 | U61: 53.5 | V61: 16676.528 | W61: 20676.528 | X61: 20676.528 | Z61: Allowables | AA61: 498.7 | CV61: 60 | CW61: 72-0107 | CX61: 24770.7328
A62: 37-0001 | B62: Holliston LLC | C62: Non-EGU | D62: 0 | E62: 0.8 | F62: 0 | G62: 0.1 | H62: 0 | I62: 96.1 | J62: 0 | K62: 18.4 | L62: 0 | M62: 0 | N62: 0 | O62: 0 | P62: 0 | Q62: 0 | R62: 0 | S62: 115.4 | T62: 33.43999863 | U62: 53.5 | V62: 6173.9 | W62: 10173.9 | X62: 10173.9 | Z62: Actuals | AA62: 115.4 | CV62: 61 | CW62: 54-0132 | CX62: 24468.16
A63: 37-0007 | B63: Tennessee Valley Authority (TVA) - John Sevier Combined Cycle Plant (JSCC) | C63: EGU | D63: 0 | E63: 77 | F63: 0 | G63: 11 | H63: 0 | I63: 49 | J63: 0 | K63: 199 | L63: 0 | M63: 0 | N63: 0 | O63: 0 | P63: 0 | Q63: 0 | R63: 0 | S63: 336 | T63: 46.81999969 | U63: 74.91000366 | V63: 25169.76 | W63: 29169.76 | X63: 29169.76 | Z63: Actuals | AA63: 336 | CV63: 62 | CW63: 72-0049 | CX63: 23746.7904
A64: 37-0026 | B64: AGC Flat Glass North America, Inc. - Greenland Plant | C64: Non-EGU | D64: 213.6 | E64: 0 | F64: 582.3 | G64: 0 | H64: 117.7 | I64: 0 | J64: 2477.126 | K64: 0 | L64: 0.75 | M64: 0 | N64: 0 | O64: 0 | P64: 0 | Q64: 0 | R64: 3391.476 | S64: 0 | T64: 33.43999863 | U64: 53.5 | V64: 113410.9574 | W64: 117410.9574 | X64: 117410.9574 | Z64: Allowables | AA64: 3391.476 | CV64: 63 | CW64: 63-0092 | CX64: 23667.4122
A65: 37-0028 | B65: BAE SYSTEMS Ordnance Systems Inc. Holston Army Ammunition Plant | C65: Non-EGU | D65: 0 | E65: 89 | F65: 0 | G65: 1699 | H65: 0 | I65: 225 | J65: 0 | K65: 338 | L65: 0 | M65: 5.5 | N65: 0 | O65: 0 | P65: 0 | Q65: 0 | R65: 0 | S65: 2356.5 | T65: 33.43999863 | U65: 53.5 | V65: 126072.75 | W65: 130072.75 | X65: 130072.75 | Z65: Actuals | AA65: 2356.5 | CV65: 64 | CW65: 28-0025 | CX65: 23523.856
A66: 37-0067 | B66: Hutchinson Sealing Systems Inc. | C66: Non-EGU | D66: 41 | E66: 0 | F66: 0 | G66: 0 | H66: 217 | I66: 0 | J66: 0 | K66: 0 | L66: 0 | M66: 0 | N66: 0 | O66: 0 | P66: 0 | Q66: 0 | R66: 258 | S66: 0 | T66: 33.43999863 | U66: 53.5 | V66: 8627.52 | W66: 12627.52 | X66: 12627.52 | Z66: Allowables | AA66: =SUM(R66:S66) -> 258 | CV66: 65 | CW66: 23-0120 | CX66: 23197.552
A67: 37-0076 | B67: Mundet Tennessee, Inc | C67: Non-EGU | D67: 19.7 | E67: 0 | F67: 1 | G67: 0 | H67: 236 | I67: 0 | J67: 7 | K67: 0 | L67: 0 | M67: 0 | N67: 0 | O67: 0 | P67: 0 | Q67: 0 | R67: 263.7 | S67: 0 | T67: 33.43999863 | U67: 53.5 | V67: 8818.128 | W67: 12818.128 | X67: 12818.128 | Z67: Allowables | AA67: 263.7 | CV67: 66 | CW67: 06-0215 | CX67: 21600.64
A68: 37-0080 | B68: Carter Valley Landfill | C68: Non-EGU | D68: 0 | E68: 0 | F68: 0 | G68: 0 | H68: 0 | I68: 6.8 | J68: 0 | K68: 0 | L68: 0 | M68: 0 | N68: 0 | O68: 0 | P68: 0 | Q68: 22.1 | R68: 0 | S68: 28.9 | T68: 33.43999863 | U68: 53.5 | V68: 1546.15 | W68: 5546.15 | X68: 7500 | Z68: Actuals | AA68: 28.9 | CV68: 67 | CW68: 05-0176 | CX68: 21570.976
A69: 38-0039 | B69: Teknor Apex Tennessee Company | C69: Non-EGU | D69: 63.4 | E69: 4.6 | F69: 0 | G69: 0.2 | H69: 214 | I69: 36.8 | J69: 0 | K69: 14 | L69: 64.2 | M69: 9.7 | N69: 0 | O69: 0 | P69: 0 | Q69: 0 | R69: 341.6 | S69: 65.3 | T69: 33.43999863 | U69: 53.5 | V69: 14916.654 | W69: 18916.654 | X69: 18916.654 | Z69: Mixed | AA69: 406.9 | CV69: 68 | CW69: 38-0069 | CX69: 21516.61
A70: 38-0053 | B70: ANR Pipeline Company dba Brownsville Compressor Station | C70: Non-EGU | D70: 0 | E70: 0 | F70: 0 | G70: 0 | H70: 0 | I70: 0 | J70: 0 | K70: 0.01 | L70: 0 | M70: 0 | N70: 0 | O70: 0 | P70: 0 | Q70: 0 | R70: 0 | S70: 0.01 | T70: 33.43999863 | U70: 53.5 | V70: 0.535 | W70: 4000.535 | X70: 7500 | Z70: Actuals | AA70: 0.01 | CV70: 69 | CW70: 90-0029 | CX70: 21511.648
A71: 38-0068 | B71: Tennessee Valley Authority - Brownsville Combustion Turbine Plant | C71: EGU | D71: 0 | E71: 5 | F71: 0 | G71: 1 | H71: 0 | I71: 7 | J71: 0 | K71: 97 | L71: 0 | M71: 0 | N71: 0 | O71: 0 | P71: 0 | Q71: 0 | R71: 0 | S71: 110 | T71: 46.81999969 | U71: 74.91000366 | V71: 8240.1 | W71: 12240.1 | X71: 12240.1 | Z71: Actuals | AA71: 110 | CV71: 70 | CW71: 27-0100 | CX71: 21017.248
A72: 38-0069 | B72: Tennessee Valley Authority Lagoon Creek Plant | C72: EGU | D72: 0 | E72: 24 | F72: 0 | G72: 6 | H72: 0 | I72: 31 | J72: 0 | K72: 130 | L72: 0 | M72: 0 | N72: 0 | O72: 0 | P72: 0 | Q72: 0 | R72: 0 | S72: 191 | T72: 46.81999969 | U72: 74.91000366 | V72: 14307.81 | W72: 18307.81 | X72: 18307.81 | Z72: Actuals | AA72: 191 | CV72: 71 | CW72: 22-0177 | CX72: 21002.416
A73: 39-0072 | B73: Leroy Somer Americas | C73: Non-EGU | D73: 80.8 | E73: 0 | F73: 13.1 | G73: 0 | H73: 155 | I73: 0 | J73: 63.5 | K73: 0 | L73: 0 | M73: 0 | N73: 0 | O73: 0 | P73: 0 | Q73: 0 | R73: 312.4 | S73: 0 | T73: 33.43999863 | U73: 53.5 | V73: 10446.656 | W73: 14446.656 | X73: 14446.656 | Z73: Allowables | AA73: 312.4 | CV73: 72 | CW73: 67-0054 | CX73: 20824.432
A74: 40-0024 | B74: ANR Pipeline Company dba Cottage Grove Compressor Station | C74: Non-EGU | D74: 0 | E74: 3.5 | F74: 0 | G74: 0 | H74: 0 | I74: 8.6 | J74: 0 | K74: 113.8 | L74: 0 | M74: 0 | N74: 0 | O74: 0 | P74: 0 | Q74: 0 | R74: 0 | S74: 125.9 | T74: 33.43999863 | U74: 53.5 | V74: 6735.65 | W74: 10735.65 | X74: 10735.65 | Z74: Actuals | AA74: 125.9 | CV74: 73 | CW74: 16-0067 | CX74: 20685.397
A75: 40-0033 | B75: Institutional Casework, Inc. | C75: Non-EGU | D75: 27.6 | E75: 0 | F75: 0 | G75: 0 | H75: 128.1 | I75: 0 | J75: 0 | K75: 0 | L75: 0 | M75: 0 | N75: 0 | O75: 0 | P75: 0 | Q75: 0 | R75: 155.7 | S75: 0 | T75: 33.43999863 | U75: 53.5 | V75: 5206.608 | W75: 9206.608 | X75: 9206.608 | Z75: Allowables | AA75: 155.7 | CV75: 74 | CW75: 14-0022 | CX75: 20404.192
A76: 40-0077 | B76: Tank Lining Of Paris | C76: Non-EGU | D76: 34.6 | E76: 0 | F76: 0 | G76: 0 | H76: 189.6 | I76: 0 | J76: 2.6 | K76: 0 | L76: 0 | M76: 0 | N76: 0 | O76: 0 | P76: 0 | Q76: 0 | R76: 226.8 | S76: 0 | T76: 33.43999863 | U76: 53.5 | V76: 7584.192 | W76: 11584.192 | X76: 11584.192 | Z76: Allowables | AA76: 226.8 | CV76: 75 | CW76: 81-0030 | CX76: 20043.28
A77: 40-0083 | B77: Allegion, PLC, c/o Schlage Lock Company, LLC dba Republic Doors and Frames | C77: Non-EGU | D77: 27.4 | E77: 0 | F77: 0 | G77: 0 | H77: 190.2 | I77: 0 | J77: 0 | K77: 0 | L77: 0 | M77: 0 | N77: 0 | O77: 0 | P77: 0 | Q77: 0 | R77: 217.6 | S77: 0 | T77: 33.43999863 | U77: 53.5 | V77: 7276.544 | W77: 11276.544 | X77: 11276.544 | Z77: Allowables | AA77: 217.6 | CV77: 76 | CW77: 60-0132 | CX77: 19558.625
A78: 40-0102 | B78: PML Inc | C78: Non-EGU | D78: 5.9 | E78: 0 | F78: 0 | G78: 0 | H78: 0 | I78: 13.1 | J78: 0 | K78: 0.4 | L78: 0 | M78: 0 | N78: 0 | O78: 0 | P78: 0 | Q78: 0 | R78: 5.9 | S78: 13.5 | T78: 33.43999863 | U78: 53.5 | V78: 919.546 | W78: 4919.546 | X78: 7500 | Z78: Mixed | AA78: 19.4 | CV78: 77 | CW78: 39-0072 | CX78: 19445.056
A79: 40-0107 | B79: Dana Sealing Products, LLC | C79: Non-EGU | D79: 0 | E79: 0 | F79: 0 | G79: 0 | H79: 0 | I79: 34 | J79: 0 | K79: 0 | L79: 0 | M79: 0 | N79: 0 | O79: 0 | P79: 0 | Q79: 0 | R79: 0 | S79: 34 | T79: 33.43999863 | U79: 53.5 | V79: 1819 | W79: 5819 | X79: 7500 | Z79: Actuals | AA79: 34 | CV79: 78 | CW79: 60-0200 | CX79: 19178.08
A80: 41-0002 | B80: Tennessee Gas Pipeline Company LLC - Compressor Station 860 | C80: Non-EGU | D80: 0 | E80: 19.8 | F80: 0 | G80: 243 | H80: 0 | I80: 49.1 | J80: 0 | K80: 1070 | L80: 0 | M80: 0 | N80: 0 | O80: 0 | P80: 0 | Q80: 0 | R80: 0 | S80: 1381.9 | T80: 33.43999863 | U80: 53.5 | V80: 73931.65 | W80: 77931.65 | X80: 77931.65 | Z80: Actuals | AA80: 1381.9 | CV80: 79 | CW80: 18-0117 | CX80: 19172.116
A81: 43-0003 | B81: Rockwood Lithium Inc. | C81: Non-EGU | D81: 8.1 | E81: 0 | F81: 0 | G81: 0 | H81: 98.6 | I81: 0 | J81: 0 | K81: 0 | L81: 0 | M81: 0 | N81: 0 | O81: 0 | P81: 0 | Q81: 0 | R81: 106.7 | S81: 0 | T81: 33.43999863 | U81: 53.5 | V81: 3568.048 | W81: 7568.048 | X81: 7568.048 | Z81: Allowables | AA81: 106.7 | CV81: 80 | CW81: 52-0002 | CX81: 18817.168
A82: 43-0007 | B82: The Chemours Company FC LLC | C82: Non-EGU | D82: 424.2 | E82: 26.19 | F82: 39 | G82: 26.62 | H82: 5.7 | I82: 77.5 | J82: 0 | K82: 75.9 | L82: 127.8 | M82: 1309.3 | N82: 0 | O82: 0 | P82: 0 | Q82: 0 | R82: 596.7 | S82: 1515.51 | T82: 33.43999863 | U82: 53.5 | V82: 101033.433 | W82: 105033.433 | X82: 105033.433 | Z82: Mixed | AA82: 2112.21 | CV82: 81 | CW82: 62-0096 | CX82: 18412.2
A83: 43-0010 | B83: Hood Container Corporation | C83: Non-EGU | D83: 0 | E83: 135 | F83: 0 | G83: 53 | H83: 0 | I83: 178 | J83: 0 | K83: 357 | L83: 0 | M83: 5 | N83: 0 | O83: 0 | P83: 16.2 | Q83: 0 | R83: 16.2 | S83: 728 | T83: 33.43999863 | U83: 53.5 | V83: 39489.728 | W83: 43489.728 | X83: 43489.728 | Z83: Mixed | AA83: 744.2 | CV83: 82 | CW83: 53-0090 | CX83: 18248.608
A84: 43-0011 | B84: Tennessee Valley Authority - Johnsonville Fossil Plant | C84: EGU | D84: 43 | E84: 28 | F84: 22 | G84: 12 | H84: 14 | I84: 28 | J84: 114 | K84: 30 | L84: 0 | M84: 0 | N84: 0 | O84: 0 | P84: 0 | Q84: 0 | R84: 193 | S84: 98 | T84: 46.81999969 | U84: 74.91000366 | V84: 16377.44 | W84: 20377.44 | X84: 20377.44 | Z84: Mixed | AA84: 291 | CV84: 83 | CW84: 05-0199 | CX84: 17976.688
A85: 43-0021 | B85: Prince Erachem Incorporated | C85: Non-EGU | D85: 78.5 | E85: 0 | F85: 222.7 | G85: 0 | H85: 5.1 | I85: 0 | J85: 182.9 | K85: 0 | L85: 0 | M85: 0 | N85: 0 | O85: 0 | P85: 0 | Q85: 0 | R85: 489.2 | S85: 0 | T85: 33.43999863 | U85: 53.5 | V85: 16358.848 | W85: 20358.848 | X85: 20358.848 | Z85: Allowables | AA85: 489.2 | CV85: 84 | CW85: 13-0083 | CX85: 17704.692
A86: 45-0085 | B86: Ball Metal Food Container, LLC | C86: Non-EGU | D86: 9.6 | E86: 0 | F86: 0.1 | G86: 0 | H86: 249.5 | I86: 0 | J86: 10.5 | K86: 0 | L86: 0 | M86: 0 | N86: 0 | O86: 0 | P86: 0 | Q86: 0 | R86: 269.7 | S86: 0 | T86: 33.43999863 | U86: 53.5 | V86: 9018.768 | W86: 13018.768 | X86: 13018.768 | Z86: Allowables | AA86: 269.7 | CV86: 85 | CW86: 16-0113 | CX86: 17447.68
A87: 45-0101 | B87: Overman International Corporation | C87: Non-EGU | D87: 0 | E87: 0 | F87: 0 | G87: 0 | H87: 0 | I87: 36.6 | J87: 0 | K87: 0 | L87: 0 | M87: 0 | N87: 0 | O87: 0 | P87: 0 | Q87: 0 | R87: 0 | S87: 36.6 | T87: 33.43999863 | U87: 53.5 | V87: 1958.1 | W87: 5958.1 | X87: 7500 | Z87: Actuals | AA87: 36.6 | CV87: 86 | CW87: 22-0072 | CX87: 17384.3481
A88: 47-0018 | B88: University of Tennessee | C88: Non-EGU | D88: 0 | E88: 2.6 | F88: 0 | G88: 0.4 | H88: 0 | I88: 5.2 | J88: 0 | K88: 38.2 | L88: 0 | M88: 0 | N88: 0 | O88: 0 | P88: 0 | Q88: 0 | R88: 0 | S88: 46.4 | T88: 33.43999863 | U88: 53.5 | V88: 2482.4 | W88: 6482.4 | X88: 7500 | Z88: Actuals | AA88: 46.4 | CV88: 87 | CW88: 45-0085 | CX88: 17333.968
A89: 49-0049 | B89: SRG Global Coatings, Inc. dba SRG Global Ripley | C89: Non-EGU | D89: 17.2 | E89: 0 | F89: 0.2 | G89: 0 | H89: 468.8 | I89: 0 | J89: 15.2 | K89: 0 | L89: 0 | M89: 0 | N89: 0 | O89: 0 | P89: 0 | Q89: 0 | R89: 501.4 | S89: 0 | T89: 33.43999863 | U89: 53.5 | V89: 16766.816 | W89: 20766.816 | X89: 20766.816 | Z89: Allowables | AA89: 501.4 | CV89: 88 | CW89: 49-0068 | CX89: 17329.024
A90: 49-0068 | B90: Marvin Windows Of Tennessee, Inc. | C90: Non-EGU | D90: 75.1 | E90: 0 | F90: 0 | G90: 0 | H90: 194.5 | I90: 0 | J90: 0 | K90: 0 | L90: 0 | M90: 0 | N90: 0 | O90: 0 | P90: 0 | Q90: 0 | R90: 269.6 | S90: 0 | T90: 33.43999863 | U90: 53.5 | V90: 9015.424 | W90: 13015.424 | X90: 13015.424 | Z90: Allowables | AA90: 269.6 | CV90: 89 | CW90: 30-0001 | CX90: 17215.312
A91: 50-0003 | B91: GrafTech Advanced Graphite Materials LLC | C91: Non-EGU | D91: 214.5 | E91: 0 | F91: 521.7 | G91: 0 | H91: 46.5 | I91: 0 | J91: 26.4 | K91: 0 | L91: 0 | M91: 0 | N91: 81.5 | O91: 0 | P91: 0 | Q91: 0 | R91: 890.6 | S91: 0 | T91: 33.43999863 | U91: 53.5 | V91: 29781.664 | W91: 33781.664 | X91: 33781.664 | Z91: Allowables | AA91: 890.6 | CV91: 90 | CW91: 71-0020 | CX91: 17195.536
A92: 50-0054 | B92: Graphic Packaging International, Inc. | C92: Non-EGU | D92: 104.3 | E92: 0 | F92: 0 | G92: 0 | H92: 0 | I92: 16.204 | J92: 0 | K92: 0 | L92: 0 | M92: 0 | N92: 0 | O92: 0 | P92: 0 | Q92: 0 | R92: 104.3 | S92: 16.204 | T92: 33.43999863 | U92: 53.5 | V92: 4354.706 | W92: 8354.706 | X92: 8354.706 | Z92: Mixed | AA92: 120.504 | CV92: 91 | CW92: 66-0101 | CX92: 17193.714
A93: 51-0031A | B93: Oliver Fiberglass Products | C93: Non-EGU | D93: 0 | E93: 1 | F93: 0 | G93: 0 | H93: 0 | I93: 12 | J93: 0 | K93: 0 | L93: 0 | M93: 0 | N93: 0 | O93: 0 | P93: 0 | Q93: 0 | R93: 0 | S93: 13 | T93: 33.43999863 | U93: 53.5 | V93: 695.5 | W93: 4695.5 | X93: 7500 | Z93: Actuals | AA93: 13 | CV93: 92 | CW93: 26-0086 | CX93: 17167.51
A94: 51-0031B | B94: Oliver Fiberglass Products | C94: Non-EGU | D94: 0 | E94: 1 | F94: 0 | G94: 0 | H94: 0 | I94: 24 | J94: 0 | K94: 0 | L94: 0 | M94: 0 | N94: 0 | O94: 0 | P94: 0 | Q94: 0 | R94: 0 | S94: 25 | T94: 33.43999863 | U94: 53.5 | V94: 1337.5 | W94: 5337.5 | X94: 7500 | Z94: Actuals | AA94: 25 | CV94: 93 | CW94: 23-0092 | CX94: 17049.592
A95: 52-0002 | B95: Goodman Company, L.P. | C95: Non-EGU | D95: 51.9 | E95: 0 | F95: 0 | G95: 0 | H95: 231.1 | I95: 0 | J95: 16.7 | K95: 0 | L95: 0 | M95: 0 | N95: 0 | O95: 0 | P95: 0 | Q95: 0 | R95: 299.7 | S95: 0 | T95: 33.43999863 | U95: 53.5 | V95: 10021.968 | W95: 14021.968 | X95: 14021.968 | Z95: Allowables | AA95: 299.7 | CV95: 94 | CW95: 37-0076 | CX95: 17037.328
A96: 52-0085 | B96: Latham Pool Products, Inc. d/b/a Viking Pools - TN | C96: Non-EGU | D96: 45 | E96: 0 | F96: 0 | G96: 0 | H96: 200 | I96: 0 | J96: 0 | K96: 0 | L96: 0 | M96: 0 | N96: 0 | O96: 0 | P96: 0 | Q96: 0 | R96: 245 | S96: 0 | T96: 33.43999863 | U96: 53.5 | V96: 8192.8 | W96: 12192.8 | X96: 12192.8 | Z96: Allowables | AA96: 245 | CV96: 95 | CW96: 37-0067 | CX96: 16755.52
A97: 53-0003 | B97: Viskase Companies Inc | C97: Non-EGU | D97: 11.5 | E97: 0 | F97: 60.6 | G97: 0 | H97: 1168 | I97: 0 | J97: 41.4 | K97: 0 | L97: 0 | M97: 0 | N97: 0 | O97: 0 | P97: 0 | Q97: 181 | R97: 1281.5 | S97: 181 | T97: 33.43999863 | U97: 53.5 | V97: 52536.86 | W97: 56536.86 | X97: 56536.86 | Z97: Mixed | AA97: 1462.5 | CV97: 96 | CW97: 82-0153 | CX97: 16429.216
A98: 53-0081 | B98: Tate & Lyle Ingredients Americas LLC | C98: Non-EGU | D98: 56.2 | E98: 0 | F98: 98.2 | G98: 0 | H98: 53.8 | I98: 0 | J98: 518 | K98: 0 | L98: 0 | M98: 0 | N98: 0 | O98: 0 | P98: 0.5 | Q98: 0 | R98: 726.7 | S98: 0 | T98: 33.43999863 | U98: 53.5 | V98: 24300.848 | W98: 28300.848 | X98: 28300.848 | Z98: Allowables | AA98: 726.7 | CV98: 97 | CW98: 01-0114 | CX98: 16130.522
A99: 53-0090 | B99: Hubbell Lenoir City, Inc. | C99: Non-EGU | D99: 63.7 | E99: 0 | F99: 0 | G99: 0 | H99: 224.5 | I99: 0 | J99: 0 | K99: 0 | L99: 0 | M99: 0 | N99: 0 | O99: 0 | P99: 0 | Q99: 0 | R99: 288.2 | S99: 0 | T99: 33.43999863 | U99: 53.5 | V99: 9637.408 | W99: 13637.408 | X99: 13637.408 | Z99: Allowables | AA99: 288.2 | CV99: 98 | CW99: 52-0085 | CX99: 16112.8
A100: 53-0093 | B100: Kimberly-Clark Corporation - Loudon Mill | C100: Non-EGU | D100: 230.5 | E100: 2.1 | F100: 0.5 | G100: 0.2 | H100: 203.6 | I100: 2.2 | J100: 42.1 | K100: 39.9 | L100: 0 | M100: 0 | N100: 0 | O100: 0 | P100: 0 | Q100: 0 | R100: 476.7 | S100: 44.4 | T100: 33.43999863 | U100: 53.5 | V100: 18316.248 | W100: 22316.248 | X100: 22316.248 | Z100: Mixed | AA100: 521.1 | CV100: 99 | CW100: 74-0102 | CX100: 15969.424
A101: 53-0098 | B101: Malibu Boats, LLC | C101: Non-EGU | D101: 72 | E101: 0 | F101: 0 | G101: 0 | H101: 460 | I101: 0 | J101: 0 | K101: 0 | L101: 0 | M101: 0 | N101: 0 | O101: 0 | P101: 0 | Q101: 0 | R101: 532 | S101: 0 | T101: 33.43999863 | U101: 53.5 | V101: 17790.08 | W101: 21790.08 | X101: 21790.08 | Z101: Allowables | AA101: 532 | CV101: 100 | CW101: 57-0254 | CX101: 15523.209
A102: 53-0110 | B102: Santek Waste Services, Inc. dba Loudon County (Matlock Bend) Landfill | C102: Non-EGU | D102: 0 | E102: 0 | F102: 0 | G102: 0 | H102: 70 | I102: 0 | J102: 0 | K102: 0 | L102: 0 | M102: 0 | N102: 0 | O102: 0 | P102: 0 | Q102: 0 | R102: 70 | S102: 0 | T102: 33.43999863 | U102: 53.5 | V102: 2340.8 | W102: 6340.8 | X102: 7500 | Z102: Allowables | AA102: 70 | CV102: 101 | CW102: 62-0107 | CX102: 15523.209
A103: 54-0009 | B103: J. M. Huber Corporation | C103: Non-EGU | D103: 368.93 | E103: 1.17 | F103: 9.21 | G103: 0.5 | H103: 6.41 | I103: 0.85 | J103: 85.12 | K103: 15.45 | L103: 0 | M103: 0 | N103: 0 | O103: 0 | P103: 0 | Q103: 0 | R103: 469.67 | S103: 17.97 | T103: 33.43999863 | U103: 53.5 | V103: 16667.1598 | W103: 20667.1598 | X103: 20667.1598 | Z103: Mixed | AA103: 487.64 | CV103: 102 | CW103: 40-0077 | CX103: 15212.992
A104: 54-0012 | B104: Resolute FP US Inc | C104: Non-EGU | D104: 707 | E104: 152.9 | F104: 1042 | G104: 6.6 | H104: 898 | I104: 25.8 | J104: 1172 | K104: 353.9 | L104: 500.2 | M104: 0 | N104: 0 | O104: 0 | P104: 64.5 | Q104: 0 | R104: 4383.7 | S104: 539.2 | T104: 33.43999863 | U104: 53.5 | V104: 175438.128 | W104: 179438.128 | X104: 179438.128 | Z104: Mixed | AA104: 4922.9 | CV104: 103 | CW104: 62-0125 | CX104: 15203.104
A105: 54-0132 | B105: Johns Manville | C105: Non-EGU | D105: 128.3 | E105: 0 | F105: 102.1 | G105: 0 | H105: 13.2 | I105: 0 | J105: 161 | K105: 0 | L105: 4.7 | M105: 0 | N105: 0 | O105: 0 | P105: 4.7 | Q105: 0 | R105: 414 | S105: 0 | T105: 33.43999863 | U105: 53.5 | V105: 13844.16 | W105: 17844.16 | X105: 17844.16 | Z105: Allowables | AA105: 414 | CV105: 104 | CW105: 59-0133 | CX105: 15124
A106: 54-0167 | B106: Johns Manville Corporation | C106: Non-EGU | D106: 132.2 | E106: 0 | F106: 8.8 | G106: 0 | H106: 288.1 | I106: 0 | J106: 132.5 | K106: 0 | L106: 0 | M106: 0 | N106: 0 | O106: 0 | P106: 0 | Q106: 0 | R106: 561.6 | S106: 0 | T106: 33.43999863 | U106: 53.5 | V106: 18779.904 | W106: 22779.904 | X106: 22779.904 | Z106: Allowables | AA106: 561.6 | CV106: 105 | CW106: 15-0009 | CX106: 15025.12
A107: 54-0174 | B107: Waupaca Foundry, Inc. Plant 6 | C107: Non-EGU | D107: 297.2 | E107: 0 | F107: 96.3 | G107: 0 | H107: 369 | I107: 0 | J107: 200.4 | K107: 0 | L107: 1.4 | M107: 0 | N107: 0 | O107: 0 | P107: 1.4 | Q107: 0 | R107: 965.7 | S107: 0 | T107: 33.43999863 | U107: 53.5 | V107: 32293.008 | W107: 36293.008 | X107: 36293.008 | Z107: Allowables | AA107: 965.7 | CV107: 106 | CW107: 30-0132 | CX107: 14953.272
A108: 54-0176 | B108: Dynasty Spas Inc. | C108: Non-EGU | D108: 0 | E108: 1.1 | F108: 0 | G108: 0 | H108: 0 | I108: 22.7 | J108: 0 | K108: 0 | L108: 0 | M108: 0 | N108: 0 | O108: 0 | P108: 0 | Q108: 0 | R108: 0 | S108: 23.8 | T108: 33.43999863 | U108: 53.5 | V108: 1273.3 | W108: 5273.3 | X108: 7500 | Z108: Actuals | AA108: 23.8 | CV108: 107 | CW108: 40-0083 | CX108: 14758.144
A109: 54-0188 | B109: Meadow Branch Landfill - Environmental Trust Company | C109: Non-EGU | D109: 0 | E109: 54.1 | F109: 0 | G109: 0 | H109: 0 | I109: 6.8 | J109: 0 | K109: 0.2 | L109: 0 | M109: 0 | N109: 0 | O109: 3.9 | P109: 0 | Q109: 0 | R109: 0 | S109: 65 | T109: 33.43999863 | U109: 53.5 | V109: 3477.5 | W109: 7477.5 | X109: 7500 | Z109: Actuals | AA109: 65 | CV109: 108 | CW109: 26-0079 | CX109: 14679.04
A110: 56-0004 | B110: Columbia Gulf Transmission Co. Hartsville Compressor Station | C110: Non-EGU | D110: 0 | E110: 0.2 | F110: 0 | G110: 0 | H110: 0 | I110: 3.6 | J110: 0 | K110: 3.3 | L110: 0 | M110: 0 | N110: 0 | O110: 0.1 | P110: 0 | Q110: 0 | R110: 0 | S110: 7.2 | T110: 33.43999863 | U110: 53.5 | V110: 385.2 | W110: 4385.2 | X110: 7500 | Z110: Actuals | AA110: 7.2 | CV110: 109 | CW110: 82-0433 | CX110: 14612.305
A111: 57-0020 | B111: Armstrong Hardwood Flooring Company | C111: Non-EGU | D111: 0 | E111: 37.5 | F111: 0 | G111: 1.1 | H111: 0 | I111: 41.7 | J111: 0 | K111: 48.9 | L111: 0 | M111: 0 | N111: 0 | O111: 0 | P111: 0 | Q111: 0 | R111: 0 | S111: 129.2 | T111: 33.43999863 | U111: 53.5 | V111: 6912.2 | W111: 10912.2 | X111: 10912.2 | Z111: Actuals | AA111: 129.2 | CV111: 110 | CW111: 30-0166 | CX111: 14501.253
A112: 57-0024 | B112: Owens Corning Composite Materials, LLC | C112: Non-EGU | D112: 4.7 | E112: 119.1 | F112: 0.1 | G112: 95.3 | H112: 0.5 | I112: 85.4 | J112: 13.51 | K112: 52.6 | L112: 0 | M112: 0 | N112: 0 | O112: 7.4 | P112: 0 | Q112: 0 | R112: 18.81 | S112: 359.8 | T112: 33.43999863 | U112: 53.5 | V112: 19878.3064 | W112: 23878.3064 | X112: 23878.3064 | Z112: Mixed | AA112: 378.61 | CV112: 111 | CW112: 89-0001 | CX112: 14268.688
A113: 57-0035 | B113: Pringles Manufacturing Company | C113: Non-EGU | D113: 173.2 | E113: 0 | F113: 6.7 | G113: 0 | H113: 91.4 | I113: 0 | J113: 234.4 | K113: 0 | L113: 0 | M113: 0 | N113: 0 | O113: 0 | P113: 0 | Q113: 0 | R113: 505.7 | S113: 0 | T113: 33.43999863 | U113: 53.5 | V113: 16910.608 | W113: 20910.608 | X113: 20910.608 | Z113: Allowables | AA113: 505.7 | CV113: 112 | CW113: 38-0068 | CX113: 14088.1
A114: 57-0189 | B114: Gerdau Ameristeel US, Inc. | C114: Non-EGU | D114: 8.3 | E114: 47.9 | F114: 0.4 | G114: 16.8 | H114: 1.1 | I114: 80 | J114: 31 | K114: 142.9 | L114: 0 | M114: 0 | N114: 0 | O114: 0 | P114: 0 | Q114: 0 | R114: 40.8 | S114: 287.6 | T114: 33.43999863 | U114: 53.5 | V114: 16750.952 | W114: 20750.952 | X114: 20750.952 | Z114: Mixed | AA114: 328.4 | CV114: 113 | CW114: 94-0072 | CX114: 14068.887
A115: 57-0221 | B115: Foam Fabricators, Inc. | C115: Non-EGU | D115: 0 | E115: 0.2 | F115: 0 | G115: 0 | H115: 0 | I115: 77.9 | J115: 0 | K115: 1.9 | L115: 0 | M115: 0 | N115: 0 | O115: 0 | P115: 0 | Q115: 0 | R115: 0 | S115: 80 | T115: 33.43999863 | U115: 53.5 | V115: 4280 | W115: 8280 | X115: 8280 | Z115: Actuals | AA115: 80 | CV115: 114 | CW115: 76-0071 | CX115: 13708.582
A116: 57-0254 | B116: Sonoco Products Company | C116: Non-EGU | D116: 0 | E116: 0 | F116: 0 | G116: 0 | H116: 0 | I116: 175.9 | J116: 0 | K116: 0 | L116: 0 | M116: 0 | N116: 0 | O116: 0 | P116: 0 | Q116: 0 | R116: 0 | S116: 175.9 | T116: 33.43999863 | U116: 53.5 | V116: 9410.65 | W116: 13410.65 | X116: 13410.65 | Z116: Actuals | AA116: 175.9 | CV116: 115 | CW116: 18-0090 | CX116: 13675.827
A117: 57-0259 | B117: Madison County Development, LLC dba Jackson-Madison County Landfill | C117: Non-EGU | D117: 0 | E117: 9.6 | F117: 0 | G117: 4.3 | H117: 0 | I117: 8.8 | J117: 0 | K117: 11.3 | L117: 0 | M117: 0 | N117: 0 | O117: 0 | P117: 0 | Q117: 0 | R117: 0 | S117: 34 | T117: 33.43999863 | U117: 53.5 | V117: 1819 | W117: 5819 | X117: 7500 | Z117: Actuals | AA117: 34 | CV117: 116 | CW117: 73-0107 | CX117: 13299.664
A118: 57-0286 | B118: Missouri Smelting Technology, Inc. | C118: Non-EGU | D118: 59.2 | E118: 0 | F118: 0.2 | G118: 0 | H118: 2 | I118: 0 | J118: 36.8 | K118: 0 | L118: 0 | M118: 0 | N118: 0 | O118: 0 | P118: 0 | Q118: 0 | R118: 98.2 | S118: 0 | T118: 33.43999863 | U118: 53.5 | V118: 3283.808 | W118: 7283.808 | X118: 7500 | Z118: Allowables | AA118: 98.2 | CV118: 117 | CW118: 30-0190 | CX118: 12770.656
A119: 59-0059 | B119: East Tennessee Natural Gas Company, Sta 3206 | C119: Non-EGU | D119: 1.1 | E119: 0 | F119: 0.4 | G119: 0 | H119: 20 | I119: 0 | J119: 74.8 | K119: 0 | L119: 0 | M119: 0 | N119: 0 | O119: 0 | P119: 0 | Q119: 0 | R119: 96.3 | S119: 0 | T119: 33.43999863 | U119: 53.5 | V119: 3220.272 | W119: 7220.272 | X119: 7500 | Z119: Allowables | AA119: 96.3 | CV119: 118 | CW119: 05-0183 | CX119: 12765.712
A120: 59-0061 | B120: Calsonic Kansei North America, Inc. | C120: Non-EGU | D120: 0 | E120: 0.3 | F120: 0 | G120: 0 | H120: 0 | I120: 25 | J120: 0 | K120: 0 | L120: 0 | M120: 0 | N120: 0 | O120: 0 | P120: 0 | Q120: 0 | R120: 0 | S120: 25.3 | T120: 33.43999863 | U120: 53.5 | V120: 1353.55 | W120: 5353.55 | X120: 7500 | Z120: Actuals | AA120: 25.3 | CV120: 119 | CW120: 57-0020 | CX120: 12463.892
A121: 59-0066 | B121: Trison Coatings Inc | C121: Non-EGU | D121: 18 | E121: 0 | F121: 0 | G121: 0 | H121: 0 | I121: 0.62 | J121: 0 | K121: 0 | L121: 0 | M121: 0 | N121: 0 | O121: 0 | P121: 0 | Q121: 0 | R121: 18 | S121: 0.62 | T121: 33.43999863 | U121: 53.5 | V121: 635.09 | W121: 4635.09 | X121: 7500 | Z121: Mixed | AA121: 18.62 | CV121: 120 | CW121: 90-0405 | CX121: 12434.464
A122: 59-0086 | B122: Cedar Ridge Landfill, Inc. | C122: Non-EGU | D122: 0 | E122: 0.9 | F122: 0 | G122: 1.2 | H122: 0 | I122: 4.9 | J122: 0 | K122: 2.1 | L122: 0 | M122: 0 | N122: 0 | O122: 0 | P122: 0 | Q122: 0 | R122: 0 | S122: 9.1 | T122: 33.43999863 | U122: 53.5 | V122: 486.85 | W122: 4486.85 | X122: 7500 | Z122: Actuals | AA122: 9.1 | CV122: 121 | CW122: 60-0161 | CX122: 12355.36
A123: 59-0133 | B123: Comfort Research | C123: Non-EGU | D123: 0 | E123: 0 | F123: 0 | G123: 0 | H123: 225 | I123: 0 | J123: 0 | K123: 0 | L123: 0 | M123: 0 | N123: 0 | O123: 0 | P123: 0 | Q123: 0 | R123: 225 | S123: 0 | T123: 33.43999863 | U123: 53.5 | V123: 7524 | W123: 11524 | X123: 11524 | Z123: Allowables | AA123: 225 | CV123: 122 | CW123: 40-0024 | CX123: 12247.709
A124: 60-0011 | B124: GrafTech Advanced Graphite Materials LLC | C124: Non-EGU | D124: 696.5 | E124: 0 | F124: 125.2 | G124: 0 | H124: 114.8 | I124: 0 | J124: 56 | K124: 0 | L124: 0 | M124: 0 | N124: 10 | O124: 0 | P124: 0 | Q124: 0 | R124: 1002.5 | S124: 0 | T124: 33.43999863 | U124: 53.5 | V124: 33523.6 | W124: 37523.6 | X124: 37523.6 | Z124: Allowables | AA124: 1002.5 | CV124: 123 | CW124: 06-0014 | CX124: 12132.88
A125: 60-0066 | B125: American Redi-Bilt Inc dba Catamaran Cruisers | C125: Non-EGU | D125: 36 | E125: 0 | F125: 0 | G125: 0 | H125: 25 | I125: 0 | J125: 0 | K125: 0 | L125: 0 | M125: 0 | N125: 0 | O125: 0 | P125: 0 | Q125: 0 | R125: 61 | S125: 0 | T125: 33.43999863 | U125: 53.5 | V125: 2039.84 | W125: 6039.84 | X125: 7500 | Z125: Allowables | AA125: 61 | CV125: 124 | CW125: 63-0278 | CX125: 12068.608
A126: 60-0095 | B126: Columbia Gulf Transmission Company Hamps | C126: Non-EGU | D126: 0 | E126: 1.7 | F126: 0 | G126: 0 | H126: 0 | I126: 4.2 | J126: 0 | K126: 113.2 | L126: 0 | M126: 0 | N126: 0 | O126: 1.9 | P126: 0 | Q126: 0 | R126: 0 | S126: 121 | T126: 33.43999863 | U126: 53.5 | V126: 6473.5 | W126: 10473.5 | X126: 10473.5 | Z126: Actuals | AA126: 121 | CV126: 125 | CW126: 60-0095 | CX126: 11926.71
A127: 60-0132 | B127: General Motors LLC - Spring Hill Manufacturing | C127: Non-EGU | D127: 0 | E127: 21.6 | F127: 0 | G127: 0.2 | H127: 0 | I127: 193.2 | J127: 0 | K127: 22.5 | L127: 0 | M127: 0 | N127: 0 | O127: 0 | P127: 0 | Q127: 0 | R127: 0 | S127: 237.5 | T127: 33.43999863 | U127: 53.5 | V127: 12706.25 | W127: 16706.25 | X127: 16706.25 | Z127: Actuals | AA127: 237.5 | CV127: 126 | CW127: 40-0033 | CX127: 11697.808
A128: 60-0161 | B128: Swarco Industries Inc. | C128: Non-EGU | D128: 0 | E128: 0 | F128: 0 | G128: 0 | H128: 169 | I128: 0 | J128: 0 | K128: 0 | L128: 0 | M128: 0 | N128: 0 | O128: 0 | P128: 0 | Q128: 0 | R128: 169 | S128: 0 | T128: 33.43999863 | U128: 53.5 | V128: 5651.36 | W128: 9651.36 | X128: 9651.36 | Z128: Allowables | AA128: 169 | CV128: 127 | CW128: 76-0002 | CX128: 11631.203
A129: 60-0184 | B129: Sonoco Protective Solutions, Inc. | C129: Non-EGU | D129: 0 | E129: 1.3 | F129: 0 | G129: 0.1 | H129: 0 | I129: 14.9 | J129: 0 | K129: 6.8 | L129: 0 | M129: 0 | N129: 0 | O129: 0 | P129: 0 | Q129: 0 | R129: 0 | S129: 23.1 | T129: 33.43999863 | U129: 53.5 | V129: 1235.85 | W129: 5235.85 | X129: 7500 | Z129: Actuals | AA129: 23.1 | CV129: 128 | CW129: 71-0148 | CX129: 11618.4192
A130: 60-0200 | B130: Sekisui Plastics | C130: Non-EGU | D130: 0 | E130: 0 | F130: 0 | G130: 0 | H130: 307 | I130: 0 | J130: 0 | K130: 0 | L130: 0 | M130: 0 | N130: 0 | O130: 0 | P130: 0 | Q130: 0 | R130: 307 | S130: 0 | T130: 33.43999863 | U130: 53.5 | V130: 10266.08 | W130: 14266.08 | X130: 14266.08 | Z130: Allowables | AA130: =SUM(R130:S130) -> 307 | CV130: 129 | CW130: 37-0001 | CX130: 11559.854
A131: 60-0272 | B131: UST, Inc. | C131: Non-EGU | D131: 171 | E131: 0 | F131: 87.8 | G131: 0 | H131: 181.9 | I131: 0 | J131: 45 | K131: 0 | L131: 0 | M131: 0 | N131: 0 | O131: 0 | P131: 0 | Q131: 0 | R131: 485.7 | S131: 0 | T131: 33.43999863 | U131: 53.5 | V131: 16241.808 | W131: 20241.808 | X131: 20241.808 | Z131: Allowables | AA131: 485.7 | CV131: 130 | CW131: 90-0232 | CX131: 11514.88
A132: 62-0089 | B132: Sea Ray Inc Tellico Facility | C132: Non-EGU | D132: 90.2 | E132: 0 | F132: 0 | G132: 0 | H132: 469 | I132: 0 | J132: 0 | K132: 0 | L132: 0 | M132: 0 | N132: 60 | O132: 0 | P132: 0 | Q132: 0 | R132: 619.2 | S132: 0 | T132: 33.43999863 | U132: 53.5 | V132: 20706.048 | W132: 24706.048 | X132: 24706.048 | Z132: Allowables | AA132: 619.2 | CV132: 131 | CW132: 11-0039 | CX132: 11346.784
A133: 62-0090 | B133: Havco Wood Products Inc | C133: Non-EGU | D133: 259 | E133: 0 | F133: 1 | G133: 0 | H133: 97 | I133: 0 | J133: 156.1 | K133: 0 | L133: 7.5 | M133: 0 | N133: 0 | O133: 0 | P133: 7.5 | Q133: 0 | R133: 528.1 | S133: 0 | T133: 33.43999863 | U133: 53.5 | V133: 17659.664 | W133: 21659.664 | X133: 21659.664 | Z133: Allowables | AA133: 528.1 | CV133: 132 | CW133: 03-0045 | CX133: 11337.12
A134: 62-0096 | B134: Yamaha Jet Boat Manufacturing USA, Inc. | C134: Non-EGU | D134: 0 | E134: 11.3 | F134: 0 | G134: 0 | H134: 0 | I134: 208.7 | J134: 0 | K134: 0 | L134: 0 | M134: 0 | N134: 0 | O134: 0 | P134: 0 | Q134: 0 | R134: 0 | S134: 220 | T134: 33.43999863 | U134: 53.5 | V134: 11770 | W134: 15770 | X134: 15770 | Z134: Actuals | AA134: 220 | CV134: 133 | CW134: 30-0136 | CX134: 11331.952
A135: 62-0102 | B135: Bryant Boats, LLC | C135: Non-EGU | D135: 36 | E135: 0 | F135: 0 | G135: 0 | H135: 100 | I135: 0 | J135: 0 | K135: 0 | L135: 0 | M135: 0 | N135: 0 | O135: 0 | P135: 0 | Q135: 0 | R135: 136 | S135: 0 | T135: 33.43999863 | U135: 53.5 | V135: 4547.84 | W135: 8547.84 | X135: 8547.84 | Z135: Allowables | AA135: 136 | CV135: 134 | CW135: 16-0010 | CX135: 11199.549
A136: 62-0107 | B136: MasterCraft Boat Company | C136: Non-EGU | D136: 0 | E136: 17.9 | F136: 0 | G136: 0 | H136: 0 | I136: 158 | J136: 0 | K136: 0 | L136: 0 | M136: 0 | N136: 0 | O136: 0 | P136: 0 | Q136: 0 | R136: 0 | S136: 175.9 | T136: 33.43999863 | U136: 53.5 | V136: 9410.65 | W136: 13410.65 | X136: 13410.65 | Z136: Actuals | AA136: 175.9 | CV136: 135 | CW136: 22-0112 | CX136: 11077.04
A137: 62-0125 | B137: Mastermelt America, LLC | C137: Non-EGU | D137: 60.5 | E137: 0 | F137: 99.9 | G137: 0 | H137: 61.1 | I137: 0 | J137: 5.1 | K137: 0 | L137: 0 | M137: 0 | N137: 0 | O137: 0 | P137: 0 | Q137: 0 | R137: 226.6 | S137: 0 | T137: 33.43999863 | U137: 53.5 | V137: 7577.504 | W137: 11577.504 | X137: 11577.504 | Z137: Allowables | AA137: 226.6 | CV137: 136 | CW137: 06-0085 | CX137: 11069.92
A138: 62-0166 | B138: MacLean Power, LLC dba MacLean Highline | C138: Non-EGU | D138: 7.6 | E138: 0 | F138: 0 | G138: 0 | H138: 38.8 | I138: 0 | J138: 0 | K138: 0 | L138: 0 | M138: 0 | N138: 0 | O138: 0 | P138: 0 | Q138: 0 | R138: 46.4 | S138: 0 | T138: 33.43999863 | U138: 53.5 | V138: 1551.616 | W138: 5551.616 | X138: 7500 | Z138: Allowables | AA138: 46.4 | CV138: 137 | CW138: 32-0196 | CX138: 11030.186
A139: 62-0194 | B139: MasterCraft Boat Company - Trailer Shop | C139: Non-EGU | D139: 29.4 | E139: 0 | F139: 0 | G139: 0 | H139: 26 | I139: 0 | J139: 0 | K139: 0 | L139: 0 | M139: 0 | N139: 0 | O139: 0 | P139: 0 | Q139: 0 | R139: 55.4 | S139: 0 | T139: 33.43999863 | U139: 53.5 | V139: 1852.576 | W139: 5852.576 | X139: 7500 | Z139: Allowables | AA139: 55.4 | CV139: 138 | CW139: 35-0001 | CX139: 10966.096
A140: 63-0092 | B140: Nyrstar Clarksville | C140: Non-EGU | D140: 0 | E140: 36.8 | F140: 0 | G140: 260.2 | H140: 0 | I140: 0 | J140: 0 | K140: 2.9 | L140: 0 | M140: 0.32 | N140: 0 | O140: 0 | P140: 0 | Q140: 0 | R140: 0 | S140: 300.22 | T140: 33.43999863 | U140: 53.5 | V140: 16061.77 | W140: 20061.77 | X140: 20061.77 | Z140: Actuals | AA140: 300.22 | CV140: 139 | CW140: 15-0005 | CX140: 10738.672
A141: 63-0097 | B141: HQ, 101st Airborne Division and Fort Campbell | C141: Non-EGU | D141: 0 | E141: 0.7 | F141: 0 | G141: 0.3 | H141: 0 | I141: 0.7 | J141: 0 | K141: 6 | L141: 0 | M141: 0 | N141: 0 | O141: 0 | P141: 0 | Q141: 2.5 | R141: 0 | S141: 10.2 | T141: 33.43999863 | U141: 53.5 | V141: 545.7 | W141: 4545.7 | X141: 7500 | Z141: Actuals | AA141: 10.2 | CV141: 140 | CW141: 62-0102 | CX141: 10723.84
A142: 63-0123 | B142: Precision Printing and Packaging Inc dba Constantia Flexibles-Labels Division | C142: Non-EGU | D142: 9 | E142: 0 | F142: 117 | G142: 0 | H142: 391 | I142: 0 | J142: 11 | K142: 0 | L142: 0 | M142: 0 | N142: 0 | O142: 0 | P142: 0 | Q142: 0 | R142: 528 | S142: 0 | T142: 33.43999863 | U142: 53.5 | V142: 17656.32 | W142: 21656.32 | X142: 21656.32 | Z142: Allowables | AA142: 528 | CV142: 141 | CW142: 82-0052 | CX142: 10713.952
A143: 63-0129 | B143: Bi-County Solid Waste Management System | C143: Non-EGU | D143: 0 | E143: 0 | F143: 0 | G143: 0 | H143: 24.6 | I143: 0 | J143: 0 | K143: 0 | L143: 0 | M143: 0 | N143: 0 | O143: 0 | P143: 0 | Q143: 0 | R143: 24.6 | S143: 0 | T143: 33.43999863 | U143: 53.5 | V143: 822.624 | W143: 4822.624 | X143: 7500 | Z143: Allowables | AA143: 24.6 | CV143: 142 | CW143: 90-0039 | CX143: 10623.061
A144: 63-0135 | B144: Florim USA Inc. | C144: Non-EGU | D144: 116.1 | E144: 0 | F144: 167.2 | G144: 0 | H144: 122.4 | I144: 0 | J144: 116.8 | K144: 0 | L144: 14.6 | M144: 0 | N144: 9.6 | O144: 0 | P144: 14.6 | Q144: 0 | R144: 561.3 | S144: 0 | T144: 33.43999863 | U144: 53.5 | V144: 18769.872 | W144: 22769.872 | X144: 22769.872 | Z144: Allowables | AA144: 561.3 | CV144: 143 | CW144: 15-0020 | CX144: 10492.041
A145: 63-0278 | B145: Bi County Gas Producers, LLC | C145: Non-EGU | D145: 42.3 | E145: 0 | F145: 0 | G145: 0 | H145: 40.3 | I145: 0 | J145: 80.6 | K145: 0 | L145: 0 | M145: 0 | N145: 0 | O145: 0 | P145: 0 | Q145: 0 | R145: 163.2 | S145: 0 | T145: 33.43999863 | U145: 53.5 | V145: 5457.408 | W145: 9457.408 | X145: 9457.408 | Z145: Allowables | AA145: 163.2 | CV145: 144 | CW145: 91-0075 | CX145: 10387.648
A146: 64-0001 | B146: Jack Daniel Distillery, Lem Motlow Proprietor, Inc. | C146: Non-EGU | D146: 79.1 | E146: 5.1 | F146: 1.8 | G146: 3.6 | H146: 8.3 | I146: 661.7 | J146: 36.5 | K146: 72.4 | L146: 0 | M146: 0 | N146: 0 | O146: 0 | P146: 0 | Q146: 0 | R146: 125.7 | S146: 742.8 | T146: 33.43999863 | U146: 53.5 | V146: 43943.208 | W146: 47943.208 | X146: 47943.208 | Z146: Mixed | AA146: 868.5 | CV146: 145 | CW146: 01-0170 | CX146: 10282.409
A147: 64-0013 | B147: Jack Daniel Distillery, Lem Motlow Proprietor | C147: Non-EGU | D147: 6.4 | E147: 0 | F147: 0 | G147: 90 | H147: 4000 | I147: 0 | J147: 65.6 | K147: 0 | L147: 0 | M147: 0 | N147: 0 | O147: 0 | P147: 0 | Q147: 0 | R147: 4072 | S147: 90 | T147: 33.43999863 | U147: 53.5 | V147: 140982.68 | W147: 144982.68 | X147: 144982.68 | Z147: Mixed | AA147: 4162 | CV147: 146 | CW147: 50-0054 | CX147: 10218.11604
A148: 65-0049 | B148: Heraeus Metal Processing, LLC | C148: Non-EGU | D148: 60.6 | E148: 0 | F148: 5.3 | G148: 0 | H148: 0.6 | I148: 0 | J148: 20.8 | K148: 0 | L148: 0 | M148: 0 | N148: 0 | O148: 0 | P148: 0 | Q148: 0 | R148: 87.3 | S148: 0 | T148: 33.43999863 | U148: 53.5 | V148: 2919.312 | W148: 6919.312 | X148: 7500 | Z148: Allowables | AA148: 87.3 | CV148: 147 | CW148: 72-0116 | CX148: 10060.9852
A149: 66-0012 | B149: Titan Tire Corporation Of Union City | C149: Non-EGU | D149: 0 | E149: 0.8 | F149: 0 | G149: 0.1 | H149: 0 | I149: 8.2 | J149: 0 | K149: 30.3 | L149: 0 | M149: 0 | N149: 0 | O149: 0 | P149: 0 | Q149: 0 | R149: 0 | S149: 39.4 | T149: 33.43999863 | U149: 53.5 | V149: 2107.9 | W149: 6107.9 | X149: 7500 | Z149: Actuals | AA149: 39.4 | CV149: 148 | CW149: 78-0086 | CX149: 9947.632
A150: 66-0101 | B150: Texas Gas Transmission, Llc - Kenton Comp Sta | C150: Non-EGU | D150: 0 | E150: 1.2 | F150: 0 | G150: 0.1 | H150: 0 | I150: 5.5 | J150: 0 | K150: 194.6 | L150: 0 | M150: 0 | N150: 0 | O150: 0 | P150: 0 | Q150: 0 | R150: 0 | S150: 201.4 | T150: 33.43999863 | U150: 53.5 | V150: 10774.9 | W150: 14774.9 | X150: 14774.9 | Z150: Actuals | AA150: 201.4 | CV150: 149 | CW150: 75-0381 | CX150: 9817.288
A151: 66-0113 | B151: Northwest Tennessee Disposal Corp. | C151: Non-EGU | D151: 0 | E151: 20.5 | F151: 0 | G151: 1.9 | H151: 0 | I151: 0.9 | J151: 0 | K151: 8.3 | L151: 0 | M151: 0 | N151: 0 | O151: 0.6 | P151: 0 | Q151: 0.9 | R151: 0 | S151: 33.1 | T151: 33.43999863 | U151: 53.5 | V151: 1770.85 | W151: 5770.85 | X151: 7500 | Z151: Actuals | AA151: 33.1 | CV151: 150 | CW151: 43-0003 | CX151: 9275.248
A152: 66-0123 | B152: Green Plains Obion, LLC | C152: Non-EGU | D152: 50.9 | E152: 0 | F152: 97.2 | G152: 0 | H152: 119.3 | I152: 0 | J152: 152.9 | K152: 0 | L152: 0 | M152: 0 | N152: 0 | O152: 0 | P152: 0 | Q152: 0 | R152: 420.3 | S152: 0 | T152: 33.43999863 | U152: 53.5 | V152: 14054.832 | W152: 18054.832 | X152: 18054.832 | Z152: Allowables | AA152: 420.3 | CV152: 151 | CW152: 30-0165 | CX152: 9270.304
A153: 67-0054 | B153: ABC - Inoac Exterior Systems LLC | C153: Non-EGU | D153: 81.9 | E153: 0 | F153: 2.2 | G153: 0 | H153: 245.2 | I153: 0 | J153: 11 | K153: 0 | L153: 0 | M153: 0 | N153: 0 | O153: 0 | P153: 0 | Q153: 0 | R153: 340.3 | S153: 0 | T153: 33.43999863 | U153: 53.5 | V153: 11379.632 | W153: 15379.632 | X153: 15379.632 | Z153: Allowables | AA153: 340.3 | CV153: 152 | CW153: 57-0221 | CX153: 9240.8
A154: 68-0001 | B154: Tennessee Gas Pipeline Company LLC - Compressor Station 79 | C154: Non-EGU | D154: 0 | E154: 0 | F154: 0 | G154: 0 | H154: 0 | I154: 0.1 | J154: 0 | K154: 2 | L154: 0 | M154: 0 | N154: 0 | O154: 0 | P154: 0 | Q154: 0 | R154: 0 | S154: 2.1 | T154: 33.43999863 | U154: 53.5 | V154: 112.35 | W154: 4112.35 | X154: 7500 | Z154: Actuals | AA154: 2.1 | CV154: 153 | CW154: 73-0137 | CX154: 9008.272
A155: 71-0020 | B155: Cummins Filtration | C155: Non-EGU | D155: 46.3 | E155: 0 | F155: 4.4 | G155: 0 | H155: 186.2 | I155: 0 | J155: 30 | K155: 0 | L155: 0 | M155: 0 | N155: 0 | O155: 0 | P155: 0 | Q155: 0 | R155: 266.9 | S155: 0 | T155: 33.43999863 | U155: 53.5 | V155: 8925.136 | W155: 12925.136 | X155: 12925.136 | Z155: Allowables | AA155: 266.9 | CV155: 154 | CW155: 28-0091 | CX155: 8978.608
A156: 71-0035 | B156: Tennessee Technological University | C156: Non-EGU | D156: 0 | E156: 1.4 | F156: 0 | G156: 0.1 | H156: 0 | I156: 0.9 | J156: 0 | K156: 12.3 | L156: 0 | M156: 0 | N156: 0 | O156: 0 | P156: 0 | Q156: 0 | R156: 0 | S156: 14.7 | T156: 33.43999863 | U156: 53.5 | V156: 786.45 | W156: 4786.45 | X156: 7500 | Z156: Actuals | AA156: 14.7 | CV156: 155 | CW156: 85-0027 | CX156: 8868.492
A157: 71-0148 | B157: East Tennessee Natural Gas Company - Station 3107 | C157: Non-EGU | D157: 11.7 | E157: 0 | F157: 1.9 | G157: 0 | H157: 0.03 | I157: 4.7 | J157: 1.6 | K157: 100.1 | L157: 0 | M157: 0 | N157: 0 | O157: 0 | P157: 0 | Q157: 0 | R157: 15.23 | S157: 104.8 | T157: 33.43999863 | U157: 53.5 | V157: 6116.0912 | W157: 10116.0912 | X157: 10116.0912 | Z157: Mixed | AA157: 120.03 | CV157: 156 | CW157: 57-0286 | CX157: 8855.008
A158: 72-0049 | B158: La-Z-Boy Tennessee | C158: Non-EGU | D158: 233 | E158: 0 | F158: 8.9 | G158: 0 | H158: 22.8 | I158: 29.44 | J158: 95.7 | K158: 0 | L158: 0 | M158: 0 | N158: 0 | O158: 0 | P158: 0 | Q158: 0 | R158: 360.4 | S158: 29.44 | T158: 33.43999863 | U158: 53.5 | V158: 13626.816 | W158: 17626.816 | X158: 17626.816 | Z158: Mixed | AA158: 389.84 | CV158: 157 | CW158: 59-0059 | CX158: 8761.072
A159: 72-0107 | B159: Huber Engineered Woods, LLC | C159: Non-EGU | D159: 146.88 | E159: 0 | F159: 18.42 | G159: 0 | H159: 108.42 | I159: 0 | J159: 146.4 | K159: 0 | L159: 0 | M159: 0 | N159: 0 | O159: 0 | P159: 0 | Q159: 0 | R159: 420.12 | S159: 0 | T159: 33.43999863 | U159: 53.5 | V159: 14048.8128 | W159: 18048.8128 | X159: 18048.8128 | Z159: Allowables | AA159: 420.12 | CV159: 158 | CW159: 82-0481 | CX159: 8696.8
A160: 72-0109 | B160: Rhea County Landfill/Santek Environmental | C160: Non-EGU | D160: 0 | E160: 0 | F160: 0 | G160: 0 | H160: 0 | I160: 14.09 | J160: 0 | K160: 0 | L160: 0 | M160: 0 | N160: 0 | O160: 0 | P160: 0 | Q160: 12.53 | R160: 0 | S160: 26.62 | T160: 33.43999863 | U160: 53.5 | V160: 1424.17 | W160: 5424.17 | X160: 7500 | Z160: Actuals | AA160: 26.62 | CV160: 159 | CW160: 92-0052 | CX160: 8477.6085
A161: 72-0116 | B161: General Shale Brick - Plant 42 | C161: Non-EGU | D161: 0 | E161: 6 | F161: 0 | G161: 49.6 | H161: 0 | I161: 1.7 | J161: 0 | K161: 35.2 | L161: 0 | M161: 0.02 | N161: 0 | O161: 0 | P161: 0 | Q161: 0 | R161: 0 | S161: 92.52 | T161: 33.43999863 | U161: 53.5 | V161: 4949.82 | W161: 8949.82 | X161: 8949.82 | Z161: Actuals | AA161: 92.52 | CV161: 160 | CW161: 65-0049 | CX161: 8316.112
A162: 73-0013 | B162: Tennessee Valley Authority (TVA) - Kingston Fossil Plant | C162: EGU | D162: 0 | E162: 194 | F162: 0 | G162: 1823 | H162: 224.3 | I162: 0 | J162: 0 | K162: 1545 | L162: 209 | M162: 0 | N162: 0 | O162: 0 | P162: 0 | Q162: 0 | R162: 433.3 | S162: 3562 | T162: 46.81999969 | U162: 74.91000366 | V162: 287116.526 | W162: 291116.526 | X162: 291116.526 | Z162: Mixed | AA162: 3995.3 | CV162: 161 | CW162: 54-0188 | CX162: 8258.15
A163: 73-0107 | B163: Horsehead Corporation | C163: Non-EGU | D163: 77.2 | E163: 0 | F163: 4.4 | G163: 0 | H163: 98.5 | I163: 0 | J163: 0 | K163: 0 | L163: 2.4 | M163: 0 | N163: 3.2 | O163: 0 | P163: 2.4 | Q163: 0 | R163: 188.1 | S163: 0 | T163: 33.43999863 | U163: 53.5 | V163: 6290.064 | W163: 10290.064 | X163: 10290.064 | Z163: Allowables | AA163: 188.1 | CV163: 162 | CW163: 93-0067 | CX163: 8009.584
A164: 73-0112 | B164: US Department of Energy, Oak Ridge National Laboratory (Office of Science) | C164: Non-EGU | D164: 20 | E164: 0 | F164: 0 | G164: 0 | H164: 0 | I164: 0 | J164: 0 | K164: 0 | L164: 0 | M164: 0 | N164: 0 | O164: 0 | P164: 0 | Q164: 0 | R164: 20 | S164: 0 | T164: 33.43999863 | U164: 53.5 | V164: 668.8 | W164: 4668.8 | X164: 7500 | Z164: Allowables | AA164: 20 | CV164: 163 | CW164: 78-0028 | CX164: 7960.144
A165: 73-0125 | B165: Toho Tenax America, Inc. | C165: Non-EGU | D165: 44.4 | E165: 0 | F165: 14.1 | G165: 0 | H165: 177 | I165: 0 | J165: 199.2 | K165: 0 | L165: 143 | M165: 0 | N165: 0 | O165: 0 | P165: 143 | Q165: 0 | R165: 720.7 | S165: 0 | T165: 33.43999863 | U165: 53.5 | V165: 24100.208 | W165: 28100.208 | X165: 28100.208 | Z165: Allowables | AA165: 720.7 | CV165: 164 | CW165: 24-0080 | CX165: 7534.96
A166: 73-0137 | B166: Diversified Scientific Services, Inc | C166: Non-EGU | D166: 12.8 | E166: 0 | F166: 21.9 | G166: 0 | H166: 15 | I166: 0 | J166: 39 | K166: 0 | L166: 6.3 | M166: 0 | N166: 0 | O166: 0 | P166: 6.3 | Q166: 0 | R166: 101.3 | S166: 0 | T166: 33.43999863 | U166: 53.5 | V166: 3387.472 | W166: 7387.472 | X166: 7500 | Z166: Allowables | AA166: 101.3 | CV166: 165 | CW166: 02-0081 | CX166: 7500
A167: 73-0182 | B167: Isotek, LLC dba US DOE, Oak Ridge National Laboratory | C167: Non-EGU | D167: 31.1 | E167: 0 | F167: 0 | G167: 0 | H167: 0.1 | I167: 0 | J167: 1.4 | K167: 0 | L167: 0 | M167: 0 | N167: 0 | O167: 0 | P167: 0 | Q167: 0 | R167: 32.6 | S167: 0 | T167: 33.43999863 | U167: 53.5 | V167: 1090.144 | W167: 5090.144 | X167: 7500 | Z167: Allowables | AA167: 32.6 | CV167: 166 | CW167: 05-0011 | CX167: 7500
A168: 74-0091 | B168: Hinkle Chair Company | C168: Non-EGU | D168: 0 | E168: 0.7 | F168: 0 | G168: 0 | H168: 0 | I168: 34.9 | J168: 0 | K168: 0 | L168: 0 | M168: 0 | N168: 0 | O168: 0 | P168: 0 | Q168: 0 | R168: 0 | S168: 35.6 | T168: 33.43999863 | U168: 53.5 | V168: 1904.6 | W168: 5904.6 | X168: 7500 | Z168: Actuals | AA168: 35.6 | CV168: 167 | CW168: 06-0205 | CX168: 7500
A169: 74-0102 | B169: Drew Foam Companies Inc. | C169: Non-EGU | D169: 0 | E169: 0 | F169: 0 | G169: 0 | H169: 240 | I169: 0 | J169: 2.1 | K169: 0 | L169: 0 | M169: 0 | N169: 0 | O169: 0 | P169: 0 | Q169: 0 | R169: 242.1 | S169: 0 | T169: 33.43999863 | U169: 53.5 | V169: 8095.824 | W169: 12095.824 | X169: 12095.824 | Z169: Allowables | AA169: 242.1 | CV169: 168 | CW169: 16-0123 | CX169: 7500
A170: 75-0057 | B170: Bridgestone Firestone North American Tire Llc | C170: Non-EGU | D170: 60.6 | E170: 0 | F170: 0.7 | G170: 0 | H170: 467.6 | I170: 0 | J170: 112.9 | K170: 0 | L170: 0 | M170: 0 | N170: 0 | O170: 0 | P170: 0 | Q170: 0 | R170: 641.8 | S170: 0 | T170: 33.43999863 | U170: 53.5 | V170: 21461.792 | W170: 25461.792 | X170: 25461.792 | Z170: Allowables | AA170: 641.8 | CV170: 169 | CW170: 20-0052 | CX170: 7500
A171: 75-0155 | B171: Nissan North America, Inc. - Smyrna | C171: Non-EGU | D171: 102.39 | E171: 5.5 | F171: 0 | G171: 0.6 | H171: 6.1 | I171: 1619 | J171: 0 | K171: 51.8 | L171: 0 | M171: 0 | N171: 0 | O171: 0 | P171: 0 | Q171: 0 | R171: 108.49 | S171: 1676.9 | T171: 33.43999863 | U171: 53.5 | V171: 93342.0556 | W171: 97342.0556 | X171: 97342.0556 | Z171: Mixed | AA171: 1785.39 | CV171: 170 | CW171: 22-0055 | CX171: 7500
A172: 75-0212 | B172: Nashville Marble & Whirlpool Bath Co | C172: Non-EGU | D172: 9.7 | E172: 0 | F172: 0 | G172: 0 | H172: 19.5 | I172: 0 | J172: 0 | K172: 0 | L172: 0 | M172: 0 | N172: 0 | O172: 0 | P172: 0 | Q172: 0 | R172: 29.2 | S172: 0 | T172: 33.43999863 | U172: 53.5 | V172: 976.448 | W172: 4976.448 | X172: 7500 | Z172: Allowables | AA172: 29.2 | CV172: 171 | CW172: 26-0131 | CX172: 7500
A173: 75-0381 | B173: BFI Waste Systems of North America, Inc. dba Middle Point Landfill | C173: Non-EGU | D173: 0 | E173: 0 | F173: 0 | G173: 0 | H173: 0 | I173: 21.1 | J173: 0 | K173: 0 | L173: 0 | M173: 0 | N173: 0 | O173: 0 | P173: 0 | Q173: 67.7 | R173: 0 | S173: 88.8 | T173: 33.43999863 | U173: 53.5 | V173: 4750.8 | W173: 8750.8 | X173: 8750.8 | Z173: Actuals | AA173: 88.8 | CV173: 172 | CW173: 32-0275 | CX173: 7500
A174: 76-0002 | B174: Armstrong Hardwood Flooring Company | C174: Non-EGU | D174: 0 | E174: 7.7 | F174: 0 | G174: 0 | H174: 144.15 | I174: 0 | J174: 0 | K174: 0 | L174: 0 | M174: 0 | N174: 0 | O174: 0 | P174: 0 | Q174: 0 | R174: 144.15 | S174: 7.7 | T174: 33.43999863 | U174: 53.5 | V174: 5232.326 | W174: 9232.326 | X174: 9232.326 | Z174: Mixed | AA174: 151.85 | CV174: 173 | CW174: 34-0014 | CX174: 7500
A175: 76-0071 | B175: Volunteer Regional Landfill Scott Solid | C175: Non-EGU | D175: 0 | E175: 137.5 | F175: 0 | G175: 0.5 | H175: 0 | I175: 4.5 | J175: 0 | K175: 3.3 | L175: 0 | M175: 0 | N175: 0 | O175: 2.4 | P175: 0 | Q175: 0 | R175: 0 | S175: 148.2 | T175: 33.43999863 | U175: 53.5 | V175: 7928.7 | W175: 11928.7 | X175: 11928.7 | Z175: Actuals | AA175: 148.2 | CV175: 174 | CW175: 36-0061 | CX175: 7500
A176: 78-0028 | B176: Johnson Matthey, Inc. | C176: Non-EGU | D176: 71.6 | E176: 0 | F176: 1.4 | G176: 0 | H176: 0.7 | I176: 0 | J176: 6.4 | K176: 0 | L176: 0 | M176: 0 | N176: 0 | O176: 0 | P176: 0 | Q176: 0 | R176: 80.1 | S176: 0 | T176: 33.43999863 | U176: 53.5 | V176: 2678.544 | W176: 6678.544 | X176: 7500 | Z176: Allowables | AA176: 80.1 | CV176: 175 | CW176: 37-0080 | CX176: 7500
A177: 78-0086 | B177: East Tennessee Natural Gas | C177: Non-EGU | D177: 3.1 | E177: 0 | F177: 2.6 | G177: 0 | H177: 6.9 | I177: 0 | J177: 107.7 | K177: 0 | L177: 0 | M177: 0 | N177: 0 | O177: 0 | P177: 0 | Q177: 0 | R177: 120.3 | S177: 0 | T177: 33.43999863 | U177: 53.5 | V177: 4022.832 | W177: 8022.832 | X177: 8022.832 | Z177: Allowables | AA177: 120.3 | CV177: 176 | CW177: 38-0053 | CX177: 7500
A178: 80-0009 | B178: Bon L Manufacturing Company | C178: Non-EGU | D178: 0 | E178: 16.4 | F178: 0 | G178: 0.1 | H178: 0 | I178: 16.4 | J178: 0 | K178: 17.2 | L178: 0 | M178: 0 | N178: 0 | O178: 3.1 | P178: 0 | Q178: 0 | R178: 0 | S178: 53.2 | T178: 33.43999863 | U178: 53.5 | V178: 2846.2 | W178: 6846.2 | X178: 7500 | Z178: Actuals | AA178: 53.2 | CV178: 177 | CW178: 40-0102 | CX178: 7500
A179: 81-0011 | B179: TVA - Cumberland Steam Plant | C179: EGU | D179: 0 | E179: 330 | F179: 4000 | G179: 0 | H179: 209 | I179: 0 | J179: 4000 | K179: 0 | L179: 0 | M179: 144 | N179: 0 | O179: 0 | P179: 0 | Q179: 0 | R179: 8209 | S179: 474 | T179: 46.81999969 | U179: 74.91000366 | V179: 419852.72 | W179: 423852.72 | X179: 423852.72 | Z179: Mixed | AA179: 8683 | CV179: 178 | CW179: 40-0107 | CX179: 7500
A180: 81-0030 | B180: Georgia-Pacific Gypsum LLC | C180: Non-EGU | D180: 147.3 | E180: 0 | F180: 1.4 | G180: 0 | H180: 63.6 | I180: 0 | J180: 112.2 | K180: 0 | L180: 0 | M180: 0 | N180: 0 | O180: 0 | P180: 0 | Q180: 0 | R180: 324.5 | S180: 0 | T180: 33.43999863 | U180: 53.5 | V180: 10851.28 | W180: 14851.28 | X180: 14851.28 | Z180: Allowables | AA180: 324.5 | CV180: 179 | CW180: 45-0101 | CX180: 7500
A181: 82-0003 | B181: Eastman Chemical Company | C181: Non-EGU | D181: 612 | E181: 162 | F181: 4000 | G181: 0 | H181: 4000 | I181: 0 | J181: 4000 | K181: 0 | L181: 1740 | M181: 31 | N181: 0 | O181: 0 | P181: 0 | Q181: 0 | R181: 14352 | S181: 193 | T181: 33.43999863 | U181: 53.5 | V181: 490256.38 | W181: 494256.38 | X181: 494256.38 | Z181: Mixed | AA181: 14545 | CV181: 180 | CW181: 47-0018 | CX181: 7500
A182: 82-0007 | B182: Seaman Corporation | C182: Non-EGU | D182: 0 | E182: 0.2 | F182: 0 | G182: 0 | H182: 0 | I182: 35.9 | J182: 0 | K182: 2.8 | L182: 0.18 | M182: 0 | N182: 0 | O182: 0 | P182: 0 | Q182: 0 | R182: 0.18 | S182: 38.9 | T182: 33.43999863 | U182: 53.5 | V182: 2087.1692 | W182: 6087.1692 | X182: 7500 | Z182: Mixed | AA182: 39.08 | CV182: 181 | CW182: 51-0031A | CX182: 7500
A183: 82-0022 | B183: Domtar Paper Company, LLC | C183: Non-EGU | D183: 154.6 | E183: 19 | F183: 27.3 | G183: 33.8 | H183: 71.8 | I183: 39.3 | J183: 706.5 | K183: 239.8 | L183: 0 | M183: 1.44 | N183: 0 | O183: 0 | P183: 9.8 | Q183: 4.8 | R183: 970 | S183: 338.14 | T183: 33.43999863 | U183: 53.5 | V183: 50527.29 | W183: 54527.29 | X183: 54527.29 | Z183: Mixed | AA183: 1308.14 | CV183: 182 | CW183: 51-0031B | CX183: 7500
A184: 82-0041 | B184: Charis Holding, LLC | C184: Non-EGU | D184: 143.3 | E184: 0 | F184: 173.5 | G184: 0 | H184: 45 | I184: 0 | J184: 371 | K184: 0 | L184: 0 | M184: 0 | N184: 0 | O184: 0 | P184: 0 | Q184: 0 | R184: 732.8 | S184: 0 | T184: 33.43999863 | U184: 53.5 | V184: 24504.832 | W184: 28504.832 | X184: 28504.832 | Z184: Allowables | AA184: 732.8 | CV184: 183 | CW184: 53-0110 | CX184: 7500
A185: 82-0052 | B185: UPM Pharmaceuticals, Inc. | C185: Non-EGU | D185: 29.5 | E185: 0 | F185: 4.4 | G185: 0 | H185: 70.6 | I185: 0 | J185: 11.5 | K185: 0 | L185: 9.9 | M185: 0 | N185: 0 | O185: 0 | P185: 9.9 | Q185: 0 | R185: 135.8 | S185: 0 | T185: 33.43999863 | U185: 53.5 | V185: 4541.152 | W185: 8541.152 | X185: 8541.152 | Z185: Allowables | AA185: 135.8 | CV185: 184 | CW185: 54-0176 | CX185: 7500
A186: 82-0110 | B186: East Tennessee Natural Gas Station 3308 | C186: Non-EGU | D186: 0 | E186: 1.49 | F186: 0 | G186: 0 | H186: 0 | I186: 3.8 | J186: 0 | K186: 22.47 | L186: 0 | M186: 0 | N186: 0 | O186: 0 | P186: 0 | Q186: 0 | R186: 0 | S186: 27.76 | T186: 33.43999863 | U186: 53.5 | V186: 1485.16 | W186: 5485.16 | X186: 7500 | Z186: Actuals | AA186: 27.76 | CV186: 185 | CW186: 56-0004 | CX186: 7500
A187: 82-0153 | B187: Microporous, LLC | C187: Non-EGU | D187: 59 | E187: 0 | F187: 0.4 | G187: 0 | H187: 1.7 | I187: 0 | J187: 30.3 | K187: 0 | L187: 80 | M187: 0 | N187: 0 | O187: 0 | P187: 80 | Q187: 0 | R187: 251.4 | S187: 0 | T187: 33.43999863 | U187: 53.5 | V187: 8406.816 | W187: 12406.816 | X187: 12406.816 | Z187: Allowables | AA187: 251.4 | CV187: 186 | CW187: 57-0259 | CX187: 7500
A188: 82-0315 | B188: Aurora Hardwoods, Incorporated | C188: Non-EGU | D188: 185.2 | E188: 0 | F188: 1.5 | G188: 0 | H188: 249.9 | I188: 0 | J188: 30 | K188: 0 | L188: 0 | M188: 0 | N188: 0 | O188: 0 | P188: 0 | Q188: 0 | R188: 466.6 | S188: 0 | T188: 33.43999863 | U188: 53.5 | V188: 15603.104 | W188: 19603.104 | X188: 19603.104 | Z188: Allowables | AA188: 466.6 | CV188: 187 | CW188: 59-0061 | CX188: 7500
A189: 82-0433 | B189: Leisure Products, Inc. | C189: Non-EGU | D189: 27.3 | E189: 20.2 | F189: 0 | G189: 0 | H189: 99.5 | I189: 46.1 | J189: 0 | K189: 0 | L189: 0 | M189: 0 | N189: 0 | O189: 0 | P189: 0 | Q189: 0 | R189: 126.8 | S189: 66.3 | T189: 33.43999863 | U189: 53.5 | V189: 7787.242 | W189: 11787.242 | X189: 11787.242 | Z189: Mixed | AA189: 193.1 | CV189: 188 | CW189: 59-0066 | CX189: 7500
A190: 82-0481 | B190: EcoSafe Systems, LLC dba Eco-Safe Landfill | C190: Non-EGU | D190: 20 | E190: 0 | F190: 20 | G190: 0 | H190: 25 | I190: 0 | J190: 30 | K190: 0 | L190: 0 | M190: 0 | N190: 0 | O190: 0 | P190: 0 | Q190: 0 | R190: 95 | S190: 0 | T190: 33.43999863 | U190: 53.5 | V190: 3176.8 | W190: 7176.8 | X190: 7500 | Z190: Allowables | AA190: 95 | CV190: 189 | CW190: 59-0086 | CX190: 7500
A191: 82-0510 | B191: Solvay USA Inc., dba Primester | C191: Non-EGU | D191: 7.1 | E191: 0 | F191: 1.1 | G191: 0 | H191: 43.1 | I191: 0 | J191: 0 | K191: 0 | L191: 0 | M191: 0 | N191: 0 | O191: 0 | P191: 0 | Q191: 0 | R191: 51.3 | S191: 0 | T191: 33.43999863 | U191: 53.5 | V191: 1715.472 | W191: 5715.472 | X191: 7500 | Z191: Allowables | AA191: 51.3 | CV191: 190 | CW191: 60-0066 | CX191: 7500
A192: 83-0008 | B192: Tennessee Gas Pipeline Company, LLC - Compressor Station 87 | C192: Non-EGU | D192: 0 | E192: 24.57 | F192: 0 | G192: 0.4 | H192: 0 | I192: 78.83 | J192: 0 | K192: 974.06 | L192: 0 | M192: 0 | N192: 0 | O192: 0.1 | P192: 0 | Q192: 0 | R192: 0 | S192: 1077.96 | T192: 33.43999863 | U192: 53.5 | V192: 57670.86 | W192: 61670.86 | X192: 61670.86 | Z192: Actuals | AA192: 1077.96 | CV192: 191 | CW192: 60-0184 | CX192: 7500
A193: 83-0014 | B193: Midwestern Gas Transmission Company dba MGT - Portland Compressor Station (2101) | C193: Non-EGU | D193: 5.1 | E193: 0 | F193: 2.8 | G193: 0 | H193: 0 | I193: 16.7 | J193: 0 | K193: 375.6 | L193: 0 | M193: 0 | N193: 0 | O193: 0 | P193: 0 | Q193: 0 | R193: 7.9 | S193: 392.3 | T193: 33.43999863 | U193: 53.5 | V193: 21252.226 | W193: 25252.226 | X193: 25252.226 | Z193: Mixed | AA193: 400.2 | CV193: 192 | CW193: 62-0166 | CX193: 7500
A194: 83-0025 | B194: Tennessee Valley Authority - Gallatin Fossil Plant | C194: EGU | D194: 0 | E194: 197 | F194: 0 | G194: 1404 | H194: 0 | I194: 172 | J194: 0 | K194: 951.05 | L194: 0 | M194: 123 | N194: 0 | O194: 0 | P194: 0 | Q194: 0 | R194: 0 | S194: 2847.05 | T194: 46.81999969 | U194: 74.91000366 | V194: 213272.5155 | W194: 217272.5155 | X194: 217272.5155 | Z194: Actuals | AA194: =SUM(R194:S194) -> 2847.05 | CV194: 193 | CW194: 62-0194 | CX194: 7500
A195: 83-0129 | B195: Hoeganaes Corporation | C195: Non-EGU | D195: 155.5 | E195: 0 | F195: 106.9 | G195: 0 | H195: 46.8 | I195: 0 | J195: 272.5 | K195: 0 | L195: 8.5 | M195: 0 | N195: 0 | O195: 0 | P195: 8.5 | Q195: 0 | R195: 598.7 | S195: 0 | T195: 33.43999863 | U195: 53.5 | V195: 20020.528 | W195: 24020.528 | X195: 24020.528 | Z195: Allowables | AA195: 598.7 | CV195: 194 | CW195: 63-0097 | CX195: 7500
A196: 84-0067 | B196: Texas Gas Transmission Llc | C196: Non-EGU | D196: 0 | E196: 0.2 | F196: 0 | G196: 0 | H196: 0 | I196: 0.4 | J196: 0 | K196: 3.1 | L196: 0 | M196: 0 | N196: 0 | O196: 0 | P196: 0 | Q196: 0 | R196: 0 | S196: 3.7 | T196: 33.43999863 | U196: 53.5 | V196: 197.95 | W196: 4197.95 | X196: 7500 | Z196: Actuals | AA196: 3.7 | CV196: 195 | CW196: 63-0129 | CX196: 7500
A197: 85-0027 | B197: East Tennessee Natural Gas Company, Sta 3104 | C197: Non-EGU | D197: 2.7 | E197: 0 | F197: 1.1 | G197: 0 | H197: 0.1 | I197: 1.4 | J197: 5 | K197: 66.2 | L197: 0 | M197: 0 | N197: 0 | O197: 0 | P197: 0 | Q197: 0 | R197: 8.9 | S197: 67.6 | T197: 33.43999863 | U197: 53.5 | V197: 3914.216 | W197: 7914.216 | X197: 7914.216 | Z197: Mixed | AA197: 76.5 | CV197: 196 | CW197: 66-0012 | CX197: 7500
A198: 86-0056 | B198: Regal Beloit of America, Inc. | C198: Non-EGU | D198: 0 | E198: 0 | F198: 0 | G198: 0 | H198: 49.1 | I198: 0 | J198: 0 | K198: 0 | L198: 0 | M198: 0 | N198: 0 | O198: 0 | P198: 0 | Q198: 0 | R198: 49.1 | S198: 0 | T198: 33.43999863 | U198: 53.5 | V198: 1641.904 | W198: 5641.904 | X198: 7500 | Z198: Allowables | AA198: 49.1 | CV198: 197 | CW198: 66-0113 | CX198: 7500
A199: 87-0028 | B199: O-N Minerals (Luttrell) Company | C199: Non-EGU | D199: 137.3 | E199: 0 | F199: 746.8 | G199: 0 | H199: 2 | I199: 0 | J199: 452.6 | K199: 0 | L199: 0 | M199: 0 | N199: 0 | O199: 0 | P199: 0 | Q199: 0 | R199: 1338.7 | S199: 0 | T199: 33.43999863 | U199: 53.5 | V199: 44766.128 | W199: 48766.128 | X199: 48766.128 | Z199: Allowables | AA199: 1338.7 | CV199: 198 | CW199: 68-0001 | CX199: 7500
A200: 89-0001 | B200: The Burroughs-Ross-Colville Company, LLC dba BRC | C200: Non-EGU | D200: 140.7 | E200: 0 | F200: 7.9 | G200: 0 | H200: 33.3 | I200: 0 | J200: 25.8 | K200: 0 | L200: 0 | M200: 0 | N200: 0 | O200: 0 | P200: 0 | Q200: 0 | R200: 207.7 | S200: 0 | T200: 33.43999863 | U200: 53.5 | V200: 6945.488 | W200: 10945.488 | X200: 10945.488 | Z200: Allowables | AA200: 207.7 | CV200: 199 | CW200: 71-0035 | CX200: 7500
... 20 more rows

Sheet APConly (hidden)
A1: Expenses | B1: 6300000
A2: Initial Balance | B2: 1880000
A3: Final Balance | B3: 1000000
A4: lastrow | B4: 216
A5: Minimum Fee | B5: 7500
A6: Base Fee | B6: 4000
A7: FY2018 Fees collected in FY2019 | B7: 480000

Sheet SearchResults (hidden)
A1: baseFee | B1: minFee | C1: NEGU_ALW | D1: EGU_ALW | E1: NEGU_ACT | F1: EGU_ACT | G1: increment | H1: curRevenue | I1: error

Sheet Output
A224: Maximum of Fees | B224: =MAX(B1:B215) -> 0 | C224: =MAX(C1:C215) -> 0 | D224: 0 | E224: 0 | F224: 0 | G224: 0 | H224: 0 | I224: 0 | J224: 0 | K224: 0 | L224: 0 | M224: 0 | N224: 0 | O224: 0 | P224: 0 | Q224: 0 | R224: 0 | S224: 0 | T224: 0 | U224: 0 | V224: 0
A225: delta-Max | C225: =C224-B224 -> 0 | D225: 0 | E225: 0 | F225: 0 | G225: 0 | H225: 0 | I225: 0 | J225: 0 | K225: 0 | L225: 0 | M225: 0 | N225: 0 | O225: 0 | P225: 0 | Q225: 0 | R225: 0 | S225: 0 | T225: 0 | U225: 0 | V225: 0
A226: Mean | B226: =AVERAGE(B1:B215) ->  | C226: =AVERAGE(C1:C215) -> 
A227: delta-Mean | C227: =C226-B226 -> 
A228: Median | B228: =MEDIAN(B1:B215) ->  | C228: =MEDIAN(C1:C215) -> 
A229: delta-Median | C229: =C228-B228 -> 
A230: Mode | B230: =MODE(B1:B215) ->  | C230: =MODE(C1:C215) -> 
A231: Minimum | B231: =MIN(B1:B215) -> 0 | C231: =MIN(C1:C215) -> 0 | D231: 0 | E231: 0 | F231: 0 | G231: 0 | H231: 0 | I231: 0 | J231: 0 | K231: 0 | L231: 0 | M231: 0 | N231: 0 | O231: 0 | P231: 0 | Q231: 0 | R231: 0 | S231: 0 | T231: 0 | U231: 0 | V231: 0
A232: # @ Minimum | B232: =COUNTIF(B1:B215,"<="&B231) -> 0 | C232: =COUNTIF(C1:C215,"<="&C231) -> 0 | D232: 0 | E232: 0 | F232: 0 | G232: 0 | H232: 0 | I232: 0 | J232: 0 | K232: 0 | L232: 0 | M232: 0 | N232: 0 | O232: 0 | P232: 0 | Q232: 0 | R232: 0 | S232: 0 | T232: 0 | U232: 0 | V232: 0
A233: % of Total | B233: =B232/215 -> 0 | C233: =C232/215 -> 0 | D233: 0 | E233: 0 | F233: 0 | G233: 0 | H233: 0 | I233: 0 | J233: 0 | K233: 0 | L233: 0 | M233: 0 | N233: 0 | O233: 0 | P233: 0 | Q233: 0 | R233: 0 | S233: 0 | T233: 0 | U233: 0 | V233: 0
A234: # > Mean | B234: =COUNTIF(B1:B215,">"&B226) -> 0 | C234: =COUNTIF(C1:C215,">"&C226) -> 0 | D234: 0 | E234: 0 | F234: 0 | G234: 0 | H234: 0 | I234: 0 | J234: 0 | K234: 0 | L234: 0 | M234: 0 | N234: 0 | O234: 0 | P234: 0 | Q234: 0 | R234: 0 | S234: 0 | T234: 0 | U234: 0 | V234: 0
A235: % of Total | B235: =B234/215 -> 0 | C235: =C234/215 -> 0 | D235: 0 | E235: 0 | F235: 0 | G235: 0 | H235: 0 | I235: 0 | J235: 0 | K235: 0 | L235: 0 | M235: 0 | N235: 0 | O235: 0 | P235: 0 | Q235: 0 | R235: 0 | S235: 0 | T235: 0 | U235: 0 | V235: 0
A236: # in between | B236: =COUNT(B1:B215)-B232-B234 -> 0 | C236: =COUNT(C1:C215)-C232-C234 -> 0 | D236: 0 | E236: 0 | F236: 0 | G236: 0 | H236: 0 | I236: 0 | J236: 0 | K236: 0 | L236: 0 | M236: 0 | N236: 0 | O236: 0 | P236: 0 | Q236: 0 | R236: 0 | S236: 0 | T236: 0 | U236: 0 | V236: 0
A237: % of Total | B237: =B236/COUNT(B1:B215) ->  | C237: =C236/COUNT(C1:C215) -> 
